{"text_format":"3","workbook":"xlsx","n_sheets":2,"sheets":["Calendario de trabajo por turno","Patrón de turnos"],"not_rendered":{"defined_names":19},"read":"whole","date_system":"1900"}

{"sheet":"Calendario de trabajo por turno","index":0,"n_rows":30,"n_cols":32,"rows_kept":30,"merged":[[0,28,0,31],[4,1,4,7],[4,9,4,15],[4,17,4,23],[4,25,4,31],[13,1,13,7],[13,9,13,15],[13,17,13,23],[13,25,13,31],[22,1,22,7],[22,9,22,15],[22,17,22,23],[22,25,22,31]]}
[null,"Calendario DE TRABAJO POR TURNOS",{"$nulls":26},2021]
[]
[null,null,{"$f":"IF('Patrón de turnos'!D4=0,\"\",'Patrón de turnos'!D4)","v":"De 6:00 a.m. a 2:00 p.m."},{"$nulls":5},{"$f":"IF('Patrón de turnos'!D5=0,\"\",'Patrón de turnos'!D5)","v":"De 10:00 p.m. a 6:00 a.m."},{"$nulls":5},{"$f":"IF('Patrón de turnos'!D6=0,\"\",'Patrón de turnos'!D6)","v":""}]
[]
[null,"Enero",{"$nulls":7},"Febrero",{"$nulls":7},"Marzo",{"$nulls":7},"Abril"]
[null,"Lu","Ma","Mi","Ju","Vi","Sa","Do",null,"Lu","Ma","Mi","Ju","Vi","Sa","Do",null,"Lu","Ma","Mi","Ju","Vi","Sa","Do",null,"Lu","Ma","Mi","Ju","Vi","Sa","Do"]
[null,{"$f":"IF(DAY(EneDom1)=1,\"\",IF(AND(YEAR(EneDom1+1)=AñoCalendario,MONTH(EneDom1+1)=1),EneDom1+1,\"\"))","v":""},{"$f":"IF(DAY(EneDom1)=1,\"\",IF(AND(YEAR(EneDom1+2)=AñoCalendario,MONTH(EneDom1+2)=1),EneDom1+2,\"\"))","v":""},{"$f":"IF(DAY(EneDom1)=1,\"\",IF(AND(YEAR(EneDom1+3)=AñoCalendario,MONTH(EneDom1+3)=1),EneDom1+3,\"\"))","v":""},{"$f":"IF(DAY(EneDom1)=1,\"\",IF(AND(YEAR(EneDom1+4)=AñoCalendario,MONTH(EneDom1+4)=1),EneDom1+4,\"\"))","v":""},{"$f":"IF(DAY(EneDom1)=1,\"\",IF(AND(YEAR(EneDom1+5)=AñoCalendario,MONTH(EneDom1+5)=1),EneDom1+5,\"\"))","v":"2021-01-01"},{"$f":"IF(DAY(EneDom1)=1,\"\",IF(AND(YEAR(EneDom1+6)=AñoCalendario,MONTH(EneDom1+6)=1),EneDom1+6,\"\"))","v":"2021-01-02"},{"$f":"IF(DAY(EneDom1)=1,IF(AND(YEAR(EneDom1)=AñoCalendario,MONTH(EneDom1)=1),EneDom1,\"\"),IF(AND(YEAR(EneDom1+7)=AñoCalendario,MONTH(EneDom1+7)=1),EneDom1+7,\"\"))","v":"2021-01-03"},null,{"$f":"IF(DAY(FebDom1)=1,\"\",IF(AND(YEAR(FebDom1+1)=AñoCalendario,MONTH(FebDom1+1)=2),FebDom1+1,\"\"))","v":"2021-02-01"},{"$f":"IF(DAY(FebDom1)=1,\"\",IF(AND(YEAR(FebDom1+2)=AñoCalendario,MONTH(FebDom1+2)=2),FebDom1+2,\"\"))","v":"2021-02-02"},{"$f":"IF(DAY(FebDom1)=1,\"\",IF(AND(YEAR(FebDom1+3)=AñoCalendario,MONTH(FebDom1+3)=2),FebDom1+3,\"\"))","v":"2021-02-03"},{"$f":"IF(DAY(FebDom1)=1,\"\",IF(AND(YEAR(FebDom1+4)=AñoCalendario,MONTH(FebDom1+4)=2),FebDom1+4,\"\"))","v":"2021-02-04"},{"$f":"IF(DAY(FebDom1)=1,\"\",IF(AND(YEAR(FebDom1+5)=AñoCalendario,MONTH(FebDom1+5)=2),FebDom1+5,\"\"))","v":"2021-02-05"},{"$f":"IF(DAY(FebDom1)=1,\"\",IF(AND(YEAR(FebDom1+6)=AñoCalendario,MONTH(FebDom1+6)=2),FebDom1+6,\"\"))","v":"2021-02-06"},{"$f":"IF(DAY(FebDom1)=1,IF(AND(YEAR(FebDom1)=AñoCalendario,MONTH(FebDom1)=2),FebDom1,\"\"),IF(AND(YEAR(FebDom1+7)=AñoCalendario,MONTH(FebDom1+7)=2),FebDom1+7,\"\"))","v":"2021-02-07"},null,{"$f":"IF(DAY(MarDom1)=1,\"\",IF(AND(YEAR(MarDom1+1)=AñoCalendario,MONTH(MarDom1+1)=3),MarDom1+1,\"\"))","v":"2021-03-01"},{"$f":"IF(DAY(MarDom1)=1,\"\",IF(AND(YEAR(MarDom1+2)=AñoCalendario,MONTH(MarDom1+2)=3),MarDom1+2,\"\"))","v":"2021-03-02"},{"$f":"IF(DAY(MarDom1)=1,\"\",IF(AND(YEAR(MarDom1+3)=AñoCalendario,MONTH(MarDom1+3)=3),MarDom1+3,\"\"))","v":"2021-03-03"},{"$f":"IF(DAY(MarDom1)=1,\"\",IF(AND(YEAR(MarDom1+4)=AñoCalendario,MONTH(MarDom1+4)=3),MarDom1+4,\"\"))","v":"2021-03-04"},{"$f":"IF(DAY(MarDom1)=1,\"\",IF(AND(YEAR(MarDom1+5)=AñoCalendario,MONTH(MarDom1+5)=3),MarDom1+5,\"\"))","v":"2021-03-05"},{"$f":"IF(DAY(MarDom1)=1,\"\",IF(AND(YEAR(MarDom1+6)=AñoCalendario,MONTH(MarDom1+6)=3),MarDom1+6,\"\"))","v":"2021-03-06"},{"$f":"IF(DAY(MarDom1)=1,IF(AND(YEAR(MarDom1)=AñoCalendario,MONTH(MarDom1)=3),MarDom1,\"\"),IF(AND(YEAR(MarDom1+7)=AñoCalendario,MONTH(MarDom1+7)=3),MarDom1+7,\"\"))","v":"2021-03-07"},null,{"$f":"IF(DAY(AbrDom1)=1,\"\",IF(AND(YEAR(AbrDom1+1)=AñoCalendario,MONTH(AbrDom1+1)=4),AbrDom1+1,\"\"))","v":""},{"$f":"IF(DAY(AbrDom1)=1,\"\",IF(AND(YEAR(AbrDom1+2)=AñoCalendario,MONTH(AbrDom1+2)=4),AbrDom1+2,\"\"))","v":""},{"$f":"IF(DAY(AbrDom1)=1,\"\",IF(AND(YEAR(AbrDom1+3)=AñoCalendario,MONTH(AbrDom1+3)=4),AbrDom1+3,\"\"))","v":""},{"$f":"IF(DAY(AbrDom1)=1,\"\",IF(AND(YEAR(AbrDom1+4)=AñoCalendario,MONTH(AbrDom1+4)=4),AbrDom1+4,\"\"))","v":"2021-04-01"},{"$f":"IF(DAY(AbrDom1)=1,\"\",IF(AND(YEAR(AbrDom1+5)=AñoCalendario,MONTH(AbrDom1+5)=4),AbrDom1+5,\"\"))","v":"2021-04-02"},{"$f":"IF(DAY(AbrDom1)=1,\"\",IF(AND(YEAR(AbrDom1+6)=AñoCalendario,MONTH(AbrDom1+6)=4),AbrDom1+6,\"\"))","v":"2021-04-03"},{"$f":"IF(DAY(AbrDom1)=1,IF(AND(YEAR(AbrDom1)=AñoCalendario,MONTH(AbrDom1)=4),AbrDom1,\"\"),IF(AND(YEAR(AbrDom1+7)=AñoCalendario,MONTH(AbrDom1+7)=4),AbrDom1+7,\"\"))","v":"2021-04-04"}]
[null,{"$f":"IF(DAY(EneDom1)=1,IF(AND(YEAR(EneDom1+1)=AñoCalendario,MONTH(EneDom1+1)=1),EneDom1+1,\"\"),IF(AND(YEAR(EneDom1+8)=AñoCalendario,MONTH(EneDom1+8)=1),EneDom1+8,\"\"))","v":"2021-01-04"},{"$f":"IF(DAY(EneDom1)=1,IF(AND(YEAR(EneDom1+2)=AñoCalendario,MONTH(EneDom1+2)=1),EneDom1+2,\"\"),IF(AND(YEAR(EneDom1+9)=AñoCalendario,MONTH(EneDom1+9)=1),EneDom1+9,\"\"))","v":"2021-01-05"},{"$f":"IF(DAY(EneDom1)=1,IF(AND(YEAR(EneDom1+3)=AñoCalendario,MONTH(EneDom1+3)=1),EneDom1+3,\"\"),IF(AND(YEAR(EneDom1+10)=AñoCalendario,MONTH(EneDom1+10)=1),EneDom1+10,\"\"))","v":"2021-01-06"},{"$f":"IF(DAY(EneDom1)=1,IF(AND(YEAR(EneDom1+4)=AñoCalendario,MONTH(EneDom1+4)=1),EneDom1+4,\"\"),IF(AND(YEAR(EneDom1+11)=AñoCalendario,MONTH(EneDom1+11)=1),EneDom1+11,\"\"))","v":"2021-01-07"},{"$f":"IF(DAY(EneDom1)=1,IF(AND(YEAR(EneDom1+5)=AñoCalendario,MONTH(EneDom1+5)=1),EneDom1+5,\"\"),IF(AND(YEAR(EneDom1+12)=AñoCalendario,MONTH(EneDom1+12)=1),EneDom1+12,\"\"))","v":"2021-01-08"},{"$f":"IF(DAY(EneDom1)=1,IF(AND(YEAR(EneDom1+6)=AñoCalendario,MONTH(EneDom1+6)=1),EneDom1+6,\"\"),IF(AND(YEAR(EneDom1+13)=AñoCalendario,MONTH(EneDom1+13)=1),EneDom1+13,\"\"))","v":"2021-01-09"},{"$f":"IF(DAY(EneDom1)=1,IF(AND(YEAR(EneDom1+7)=AñoCalendario,MONTH(EneDom1+7)=1),EneDom1+7,\"\"),IF(AND(YEAR(EneDom1+14)=AñoCalendario,MONTH(EneDom1+14)=1),EneDom1+14,\"\"))","v":"2021-01-10"},null,{"$f":"IF(DAY(FebDom1)=1,IF(AND(YEAR(FebDom1+1)=AñoCalendario,MONTH(FebDom1+1)=2),FebDom1+1,\"\"),IF(AND(YEAR(FebDom1+8)=AñoCalendario,MONTH(FebDom1+8)=2),FebDom1+8,\"\"))","v":"2021-02-08"},{"$f":"IF(DAY(FebDom1)=1,IF(AND(YEAR(FebDom1+2)=AñoCalendario,MONTH(FebDom1+2)=2),FebDom1+2,\"\"),IF(AND(YEAR(FebDom1+9)=AñoCalendario,MONTH(FebDom1+9)=2),FebDom1+9,\"\"))","v":"2021-02-09"},{"$f":"IF(DAY(FebDom1)=1,IF(AND(YEAR(FebDom1+3)=AñoCalendario,MONTH(FebDom1+3)=2),FebDom1+3,\"\"),IF(AND(YEAR(FebDom1+10)=AñoCalendario,MONTH(FebDom1+10)=2),FebDom1+10,\"\"))","v":"2021-02-10"},{"$f":"IF(DAY(FebDom1)=1,IF(AND(YEAR(FebDom1+4)=AñoCalendario,MONTH(FebDom1+4)=2),FebDom1+4,\"\"),IF(AND(YEAR(FebDom1+11)=AñoCalendario,MONTH(FebDom1+11)=2),FebDom1+11,\"\"))","v":"2021-02-11"},{"$f":"IF(DAY(FebDom1)=1,IF(AND(YEAR(FebDom1+5)=AñoCalendario,MONTH(FebDom1+5)=2),FebDom1+5,\"\"),IF(AND(YEAR(FebDom1+12)=AñoCalendario,MONTH(FebDom1+12)=2),FebDom1+12,\"\"))","v":"2021-02-12"},{"$f":"IF(DAY(FebDom1)=1,IF(AND(YEAR(FebDom1+6)=AñoCalendario,MONTH(FebDom1+6)=2),FebDom1+6,\"\"),IF(AND(YEAR(FebDom1+13)=AñoCalendario,MONTH(FebDom1+13)=2),FebDom1+13,\"\"))","v":"2021-02-13"},{"$f":"IF(DAY(FebDom1)=1,IF(AND(YEAR(FebDom1+7)=AñoCalendario,MONTH(FebDom1+7)=2),FebDom1+7,\"\"),IF(AND(YEAR(FebDom1+14)=AñoCalendario,MONTH(FebDom1+14)=2),FebDom1+14,\"\"))","v":"2021-02-14"},null,{"$f":"IF(DAY(MarDom1)=1,IF(AND(YEAR(MarDom1+1)=AñoCalendario,MONTH(MarDom1+1)=3),MarDom1+1,\"\"),IF(AND(YEAR(MarDom1+8)=AñoCalendario,MONTH(MarDom1+8)=3),MarDom1+8,\"\"))","v":"2021-03-08"},{"$f":"IF(DAY(MarDom1)=1,IF(AND(YEAR(MarDom1+2)=AñoCalendario,MONTH(MarDom1+2)=3),MarDom1+2,\"\"),IF(AND(YEAR(MarDom1+9)=AñoCalendario,MONTH(MarDom1+9)=3),MarDom1+9,\"\"))","v":"2021-03-09"},{"$f":"IF(DAY(MarDom1)=1,IF(AND(YEAR(MarDom1+3)=AñoCalendario,MONTH(MarDom1+3)=3),MarDom1+3,\"\"),IF(AND(YEAR(MarDom1+10)=AñoCalendario,MONTH(MarDom1+10)=3),MarDom1+10,\"\"))","v":"2021-03-10"},{"$f":"IF(DAY(MarDom1)=1,IF(AND(YEAR(MarDom1+4)=AñoCalendario,MONTH(MarDom1+4)=3),MarDom1+4,\"\"),IF(AND(YEAR(MarDom1+11)=AñoCalendario,MONTH(MarDom1+11)=3),MarDom1+11,\"\"))","v":"2021-03-11"},{"$f":"IF(DAY(MarDom1)=1,IF(AND(YEAR(MarDom1+5)=AñoCalendario,MONTH(MarDom1+5)=3),MarDom1+5,\"\"),IF(AND(YEAR(MarDom1+12)=AñoCalendario,MONTH(MarDom1+12)=3),MarDom1+12,\"\"))","v":"2021-03-12"},{"$f":"IF(DAY(MarDom1)=1,IF(AND(YEAR(MarDom1+6)=AñoCalendario,MONTH(MarDom1+6)=3),MarDom1+6,\"\"),IF(AND(YEAR(MarDom1+13)=AñoCalendario,MONTH(MarDom1+13)=3),MarDom1+13,\"\"))","v":"2021-03-13"},{"$f":"IF(DAY(MarDom1)=1,IF(AND(YEAR(MarDom1+7)=AñoCalendario,MONTH(MarDom1+7)=3),MarDom1+7,\"\"),IF(AND(YEAR(MarDom1+14)=AñoCalendario,MONTH(MarDom1+14)=3),MarDom1+14,\"\"))","v":"2021-03-14"},null,{"$f":"IF(DAY(AbrDom1)=1,IF(AND(YEAR(AbrDom1+1)=AñoCalendario,MONTH(AbrDom1+1)=4),AbrDom1+1,\"\"),IF(AND(YEAR(AbrDom1+8)=AñoCalendario,MONTH(AbrDom1+8)=4),AbrDom1+8,\"\"))","v":"2021-04-05"},{"$f":"IF(DAY(AbrDom1)=1,IF(AND(YEAR(AbrDom1+2)=AñoCalendario,MONTH(AbrDom1+2)=4),AbrDom1+2,\"\"),IF(AND(YEAR(AbrDom1+9)=AñoCalendario,MONTH(AbrDom1+9)=4),AbrDom1+9,\"\"))","v":"2021-04-06"},{"$f":"IF(DAY(AbrDom1)=1,IF(AND(YEAR(AbrDom1+3)=AñoCalendario,MONTH(AbrDom1+3)=4),AbrDom1+3,\"\"),IF(AND(YEAR(AbrDom1+10)=AñoCalendario,MONTH(AbrDom1+10)=4),AbrDom1+10,\"\"))","v":"2021-04-07"},{"$f":"IF(DAY(AbrDom1)=1,IF(AND(YEAR(AbrDom1+4)=AñoCalendario,MONTH(AbrDom1+4)=4),AbrDom1+4,\"\"),IF(AND(YEAR(AbrDom1+11)=AñoCalendario,MONTH(AbrDom1+11)=4),AbrDom1+11,\"\"))","v":"2021-04-08"},{"$f":"IF(DAY(AbrDom1)=1,IF(AND(YEAR(AbrDom1+5)=AñoCalendario,MONTH(AbrDom1+5)=4),AbrDom1+5,\"\"),IF(AND(YEAR(AbrDom1+12)=AñoCalendario,MONTH(AbrDom1+12)=4),AbrDom1+12,\"\"))","v":"2021-04-09"},{"$f":"IF(DAY(AbrDom1)=1,IF(AND(YEAR(AbrDom1+6)=AñoCalendario,MONTH(AbrDom1+6)=4),AbrDom1+6,\"\"),IF(AND(YEAR(AbrDom1+13)=AñoCalendario,MONTH(AbrDom1+13)=4),AbrDom1+13,\"\"))","v":"2021-04-10"},{"$f":"IF(DAY(AbrDom1)=1,IF(AND(YEAR(AbrDom1+7)=AñoCalendario,MONTH(AbrDom1+7)=4),AbrDom1+7,\"\"),IF(AND(YEAR(AbrDom1+14)=AñoCalendario,MONTH(AbrDom1+14)=4),AbrDom1+14,\"\"))","v":"2021-04-11"}]
[null,{"$f":"IF(DAY(EneDom1)=1,IF(AND(YEAR(EneDom1+8)=AñoCalendario,MONTH(EneDom1+8)=1),EneDom1+8,\"\"),IF(AND(YEAR(EneDom1+15)=AñoCalendario,MONTH(EneDom1+15)=1),EneDom1+15,\"\"))","v":"2021-01-11"},{"$f":"IF(DAY(EneDom1)=1,IF(AND(YEAR(EneDom1+9)=AñoCalendario,MONTH(EneDom1+9)=1),EneDom1+9,\"\"),IF(AND(YEAR(EneDom1+16)=AñoCalendario,MONTH(EneDom1+16)=1),EneDom1+16,\"\"))","v":"2021-01-12"},{"$f":"IF(DAY(EneDom1)=1,IF(AND(YEAR(EneDom1+10)=AñoCalendario,MONTH(EneDom1+10)=1),EneDom1+10,\"\"),IF(AND(YEAR(EneDom1+17)=AñoCalendario,MONTH(EneDom1+17)=1),EneDom1+17,\"\"))","v":"2021-01-13"},{"$f":"IF(DAY(EneDom1)=1,IF(AND(YEAR(EneDom1+11)=AñoCalendario,MONTH(EneDom1+11)=1),EneDom1+11,\"\"),IF(AND(YEAR(EneDom1+18)=AñoCalendario,MONTH(EneDom1+18)=1),EneDom1+18,\"\"))","v":"2021-01-14"},{"$f":"IF(DAY(EneDom1)=1,IF(AND(YEAR(EneDom1+12)=AñoCalendario,MONTH(EneDom1+12)=1),EneDom1+12,\"\"),IF(AND(YEAR(EneDom1+19)=AñoCalendario,MONTH(EneDom1+19)=1),EneDom1+19,\"\"))","v":"2021-01-15"},{"$f":"IF(DAY(EneDom1)=1,IF(AND(YEAR(EneDom1+13)=AñoCalendario,MONTH(EneDom1+13)=1),EneDom1+13,\"\"),IF(AND(YEAR(EneDom1+20)=AñoCalendario,MONTH(EneDom1+20)=1),EneDom1+20,\"\"))","v":"2021-01-16"},{"$f":"IF(DAY(EneDom1)=1,IF(AND(YEAR(EneDom1+14)=AñoCalendario,MONTH(EneDom1+14)=1),EneDom1+14,\"\"),IF(AND(YEAR(EneDom1+21)=AñoCalendario,MONTH(EneDom1+21)=1),EneDom1+21,\"\"))","v":"2021-01-17"},null,{"$f":"IF(DAY(FebDom1)=1,IF(AND(YEAR(FebDom1+8)=AñoCalendario,MONTH(FebDom1+8)=2),FebDom1+8,\"\"),IF(AND(YEAR(FebDom1+15)=AñoCalendario,MONTH(FebDom1+15)=2),FebDom1+15,\"\"))","v":"2021-02-15"},{"$f":"IF(DAY(FebDom1)=1,IF(AND(YEAR(FebDom1+9)=AñoCalendario,MONTH(FebDom1+9)=2),FebDom1+9,\"\"),IF(AND(YEAR(FebDom1+16)=AñoCalendario,MONTH(FebDom1+16)=2),FebDom1+16,\"\"))","v":"2021-02-16"},{"$f":"IF(DAY(FebDom1)=1,IF(AND(YEAR(FebDom1+10)=AñoCalendario,MONTH(FebDom1+10)=2),FebDom1+10,\"\"),IF(AND(YEAR(FebDom1+17)=AñoCalendario,MONTH(FebDom1+17)=2),FebDom1+17,\"\"))","v":"2021-02-17"},{"$f":"IF(DAY(FebDom1)=1,IF(AND(YEAR(FebDom1+11)=AñoCalendario,MONTH(FebDom1+11)=2),FebDom1+11,\"\"),IF(AND(YEAR(FebDom1+18)=AñoCalendario,MONTH(FebDom1+18)=2),FebDom1+18,\"\"))","v":"2021-02-18"},{"$f":"IF(DAY(FebDom1)=1,IF(AND(YEAR(FebDom1+12)=AñoCalendario,MONTH(FebDom1+12)=2),FebDom1+12,\"\"),IF(AND(YEAR(FebDom1+19)=AñoCalendario,MONTH(FebDom1+19)=2),FebDom1+19,\"\"))","v":"2021-02-19"},{"$f":"IF(DAY(FebDom1)=1,IF(AND(YEAR(FebDom1+13)=AñoCalendario,MONTH(FebDom1+13)=2),FebDom1+13,\"\"),IF(AND(YEAR(FebDom1+20)=AñoCalendario,MONTH(FebDom1+20)=2),FebDom1+20,\"\"))","v":"2021-02-20"},{"$f":"IF(DAY(FebDom1)=1,IF(AND(YEAR(FebDom1+14)=AñoCalendario,MONTH(FebDom1+14)=2),FebDom1+14,\"\"),IF(AND(YEAR(FebDom1+21)=AñoCalendario,MONTH(FebDom1+21)=2),FebDom1+21,\"\"))","v":"2021-02-21"},null,{"$f":"IF(DAY(MarDom1)=1,IF(AND(YEAR(MarDom1+8)=AñoCalendario,MONTH(MarDom1+8)=3),MarDom1+8,\"\"),IF(AND(YEAR(MarDom1+15)=AñoCalendario,MONTH(MarDom1+15)=3),MarDom1+15,\"\"))","v":"2021-03-15"},{"$f":"IF(DAY(MarDom1)=1,IF(AND(YEAR(MarDom1+9)=AñoCalendario,MONTH(MarDom1+9)=3),MarDom1+9,\"\"),IF(AND(YEAR(MarDom1+16)=AñoCalendario,MONTH(MarDom1+16)=3),MarDom1+16,\"\"))","v":"2021-03-16"},{"$f":"IF(DAY(MarDom1)=1,IF(AND(YEAR(MarDom1+10)=AñoCalendario,MONTH(MarDom1+10)=3),MarDom1+10,\"\"),IF(AND(YEAR(MarDom1+17)=AñoCalendario,MONTH(MarDom1+17)=3),MarDom1+17,\"\"))","v":"2021-03-17"},{"$f":"IF(DAY(MarDom1)=1,IF(AND(YEAR(MarDom1+11)=AñoCalendario,MONTH(MarDom1+11)=3),MarDom1+11,\"\"),IF(AND(YEAR(MarDom1+18)=AñoCalendario,MONTH(MarDom1+18)=3),MarDom1+18,\"\"))","v":"2021-03-18"},{"$f":"IF(DAY(MarDom1)=1,IF(AND(YEAR(MarDom1+12)=AñoCalendario,MONTH(MarDom1+12)=3),MarDom1+12,\"\"),IF(AND(YEAR(MarDom1+19)=AñoCalendario,MONTH(MarDom1+19)=3),MarDom1+19,\"\"))","v":"2021-03-19"},{"$f":"IF(DAY(MarDom1)=1,IF(AND(YEAR(MarDom1+13)=AñoCalendario,MONTH(MarDom1+13)=3),MarDom1+13,\"\"),IF(AND(YEAR(MarDom1+20)=AñoCalendario,MONTH(MarDom1+20)=3),MarDom1+20,\"\"))","v":"2021-03-20"},{"$f":"IF(DAY(MarDom1)=1,IF(AND(YEAR(MarDom1+14)=AñoCalendario,MONTH(MarDom1+14)=3),MarDom1+14,\"\"),IF(AND(YEAR(MarDom1+21)=AñoCalendario,MONTH(MarDom1+21)=3),MarDom1+21,\"\"))","v":"2021-03-21"},null,{"$f":"IF(DAY(AbrDom1)=1,IF(AND(YEAR(AbrDom1+8)=AñoCalendario,MONTH(AbrDom1+8)=4),AbrDom1+8,\"\"),IF(AND(YEAR(AbrDom1+15)=AñoCalendario,MONTH(AbrDom1+15)=4),AbrDom1+15,\"\"))","v":"2021-04-12"},{"$f":"IF(DAY(AbrDom1)=1,IF(AND(YEAR(AbrDom1+9)=AñoCalendario,MONTH(AbrDom1+9)=4),AbrDom1+9,\"\"),IF(AND(YEAR(AbrDom1+16)=AñoCalendario,MONTH(AbrDom1+16)=4),AbrDom1+16,\"\"))","v":"2021-04-13"},{"$f":"IF(DAY(AbrDom1)=1,IF(AND(YEAR(AbrDom1+10)=AñoCalendario,MONTH(AbrDom1+10)=4),AbrDom1+10,\"\"),IF(AND(YEAR(AbrDom1+17)=AñoCalendario,MONTH(AbrDom1+17)=4),AbrDom1+17,\"\"))","v":"2021-04-14"},{"$f":"IF(DAY(AbrDom1)=1,IF(AND(YEAR(AbrDom1+11)=AñoCalendario,MONTH(AbrDom1+11)=4),AbrDom1+11,\"\"),IF(AND(YEAR(AbrDom1+18)=AñoCalendario,MONTH(AbrDom1+18)=4),AbrDom1+18,\"\"))","v":"2021-04-15"},{"$f":"IF(DAY(AbrDom1)=1,IF(AND(YEAR(AbrDom1+12)=AñoCalendario,MONTH(AbrDom1+12)=4),AbrDom1+12,\"\"),IF(AND(YEAR(AbrDom1+19)=AñoCalendario,MONTH(AbrDom1+19)=4),AbrDom1+19,\"\"))","v":"2021-04-16"},{"$f":"IF(DAY(AbrDom1)=1,IF(AND(YEAR(AbrDom1+13)=AñoCalendario,MONTH(AbrDom1+13)=4),AbrDom1+13,\"\"),IF(AND(YEAR(AbrDom1+20)=AñoCalendario,MONTH(AbrDom1+20)=4),AbrDom1+20,\"\"))","v":"2021-04-17"},{"$f":"IF(DAY(AbrDom1)=1,IF(AND(YEAR(AbrDom1+14)=AñoCalendario,MONTH(AbrDom1+14)=4),AbrDom1+14,\"\"),IF(AND(YEAR(AbrDom1+21)=AñoCalendario,MONTH(AbrDom1+21)=4),AbrDom1+21,\"\"))","v":"2021-04-18"}]
[null,{"$f":"IF(DAY(EneDom1)=1,IF(AND(YEAR(EneDom1+15)=AñoCalendario,MONTH(EneDom1+15)=1),EneDom1+15,\"\"),IF(AND(YEAR(EneDom1+22)=AñoCalendario,MONTH(EneDom1+22)=1),EneDom1+22,\"\"))","v":"2021-01-18"},{"$f":"IF(DAY(EneDom1)=1,IF(AND(YEAR(EneDom1+16)=AñoCalendario,MONTH(EneDom1+16)=1),EneDom1+16,\"\"),IF(AND(YEAR(EneDom1+23)=AñoCalendario,MONTH(EneDom1+23)=1),EneDom1+23,\"\"))","v":"2021-01-19"},{"$f":"IF(DAY(EneDom1)=1,IF(AND(YEAR(EneDom1+17)=AñoCalendario,MONTH(EneDom1+17)=1),EneDom1+17,\"\"),IF(AND(YEAR(EneDom1+24)=AñoCalendario,MONTH(EneDom1+24)=1),EneDom1+24,\"\"))","v":"2021-01-20"},{"$f":"IF(DAY(EneDom1)=1,IF(AND(YEAR(EneDom1+18)=AñoCalendario,MONTH(EneDom1+18)=1),EneDom1+18,\"\"),IF(AND(YEAR(EneDom1+25)=AñoCalendario,MONTH(EneDom1+25)=1),EneDom1+25,\"\"))","v":"2021-01-21"},{"$f":"IF(DAY(EneDom1)=1,IF(AND(YEAR(EneDom1+19)=AñoCalendario,MONTH(EneDom1+19)=1),EneDom1+19,\"\"),IF(AND(YEAR(EneDom1+26)=AñoCalendario,MONTH(EneDom1+26)=1),EneDom1+26,\"\"))","v":"2021-01-22"},{"$f":"IF(DAY(EneDom1)=1,IF(AND(YEAR(EneDom1+20)=AñoCalendario,MONTH(EneDom1+20)=1),EneDom1+20,\"\"),IF(AND(YEAR(EneDom1+27)=AñoCalendario,MONTH(EneDom1+27)=1),EneDom1+27,\"\"))","v":"2021-01-23"},{"$f":"IF(DAY(EneDom1)=1,IF(AND(YEAR(EneDom1+21)=AñoCalendario,MONTH(EneDom1+21)=1),EneDom1+21,\"\"),IF(AND(YEAR(EneDom1+28)=AñoCalendario,MONTH(EneDom1+28)=1),EneDom1+28,\"\"))","v":"2021-01-24"},null,{"$f":"IF(DAY(FebDom1)=1,IF(AND(YEAR(FebDom1+15)=AñoCalendario,MONTH(FebDom1+15)=2),FebDom1+15,\"\"),IF(AND(YEAR(FebDom1+22)=AñoCalendario,MONTH(FebDom1+22)=2),FebDom1+22,\"\"))","v":"2021-02-22"},{"$f":"IF(DAY(FebDom1)=1,IF(AND(YEAR(FebDom1+16)=AñoCalendario,MONTH(FebDom1+16)=2),FebDom1+16,\"\"),IF(AND(YEAR(FebDom1+23)=AñoCalendario,MONTH(FebDom1+23)=2),FebDom1+23,\"\"))","v":"2021-02-23"},{"$f":"IF(DAY(FebDom1)=1,IF(AND(YEAR(FebDom1+17)=AñoCalendario,MONTH(FebDom1+17)=2),FebDom1+17,\"\"),IF(AND(YEAR(FebDom1+24)=AñoCalendario,MONTH(FebDom1+24)=2),FebDom1+24,\"\"))","v":"2021-02-24"},{"$f":"IF(DAY(FebDom1)=1,IF(AND(YEAR(FebDom1+18)=AñoCalendario,MONTH(FebDom1+18)=2),FebDom1+18,\"\"),IF(AND(YEAR(FebDom1+25)=AñoCalendario,MONTH(FebDom1+25)=2),FebDom1+25,\"\"))","v":"2021-02-25"},{"$f":"IF(DAY(FebDom1)=1,IF(AND(YEAR(FebDom1+19)=AñoCalendario,MONTH(FebDom1+19)=2),FebDom1+19,\"\"),IF(AND(YEAR(FebDom1+26)=AñoCalendario,MONTH(FebDom1+26)=2),FebDom1+26,\"\"))","v":"2021-02-26"},{"$f":"IF(DAY(FebDom1)=1,IF(AND(YEAR(FebDom1+20)=AñoCalendario,MONTH(FebDom1+20)=2),FebDom1+20,\"\"),IF(AND(YEAR(FebDom1+27)=AñoCalendario,MONTH(FebDom1+27)=2),FebDom1+27,\"\"))","v":"2021-02-27"},{"$f":"IF(DAY(FebDom1)=1,IF(AND(YEAR(FebDom1+21)=AñoCalendario,MONTH(FebDom1+21)=2),FebDom1+21,\"\"),IF(AND(YEAR(FebDom1+28)=AñoCalendario,MONTH(FebDom1+28)=2),FebDom1+28,\"\"))","v":"2021-02-28"},null,{"$f":"IF(DAY(MarDom1)=1,IF(AND(YEAR(MarDom1+15)=AñoCalendario,MONTH(MarDom1+15)=3),MarDom1+15,\"\"),IF(AND(YEAR(MarDom1+22)=AñoCalendario,MONTH(MarDom1+22)=3),MarDom1+22,\"\"))","v":"2021-03-22"},{"$f":"IF(DAY(MarDom1)=1,IF(AND(YEAR(MarDom1+16)=AñoCalendario,MONTH(MarDom1+16)=3),MarDom1+16,\"\"),IF(AND(YEAR(MarDom1+23)=AñoCalendario,MONTH(MarDom1+23)=3),MarDom1+23,\"\"))","v":"2021-03-23"},{"$f":"IF(DAY(MarDom1)=1,IF(AND(YEAR(MarDom1+17)=AñoCalendario,MONTH(MarDom1+17)=3),MarDom1+17,\"\"),IF(AND(YEAR(MarDom1+24)=AñoCalendario,MONTH(MarDom1+24)=3),MarDom1+24,\"\"))","v":"2021-03-24"},{"$f":"IF(DAY(MarDom1)=1,IF(AND(YEAR(MarDom1+18)=AñoCalendario,MONTH(MarDom1+18)=3),MarDom1+18,\"\"),IF(AND(YEAR(MarDom1+25)=AñoCalendario,MONTH(MarDom1+25)=3),MarDom1+25,\"\"))","v":"2021-03-25"},{"$f":"IF(DAY(MarDom1)=1,IF(AND(YEAR(MarDom1+19)=AñoCalendario,MONTH(MarDom1+19)=3),MarDom1+19,\"\"),IF(AND(YEAR(MarDom1+26)=AñoCalendario,MONTH(MarDom1+26)=3),MarDom1+26,\"\"))","v":"2021-03-26"},{"$f":"IF(DAY(MarDom1)=1,IF(AND(YEAR(MarDom1+20)=AñoCalendario,MONTH(MarDom1+20)=3),MarDom1+20,\"\"),IF(AND(YEAR(MarDom1+27)=AñoCalendario,MONTH(MarDom1+27)=3),MarDom1+27,\"\"))","v":"2021-03-27"},{"$f":"IF(DAY(MarDom1)=1,IF(AND(YEAR(MarDom1+21)=AñoCalendario,MONTH(MarDom1+21)=3),MarDom1+21,\"\"),IF(AND(YEAR(MarDom1+28)=AñoCalendario,MONTH(MarDom1+28)=3),MarDom1+28,\"\"))","v":"2021-03-28"},null,{"$f":"IF(DAY(AbrDom1)=1,IF(AND(YEAR(AbrDom1+15)=AñoCalendario,MONTH(AbrDom1+15)=4),AbrDom1+15,\"\"),IF(AND(YEAR(AbrDom1+22)=AñoCalendario,MONTH(AbrDom1+22)=4),AbrDom1+22,\"\"))","v":"2021-04-19"},{"$f":"IF(DAY(AbrDom1)=1,IF(AND(YEAR(AbrDom1+16)=AñoCalendario,MONTH(AbrDom1+16)=4),AbrDom1+16,\"\"),IF(AND(YEAR(AbrDom1+23)=AñoCalendario,MONTH(AbrDom1+23)=4),AbrDom1+23,\"\"))","v":"2021-04-20"},{"$f":"IF(DAY(AbrDom1)=1,IF(AND(YEAR(AbrDom1+17)=AñoCalendario,MONTH(AbrDom1+17)=4),AbrDom1+17,\"\"),IF(AND(YEAR(AbrDom1+24)=AñoCalendario,MONTH(AbrDom1+24)=4),AbrDom1+24,\"\"))","v":"2021-04-21"},{"$f":"IF(DAY(AbrDom1)=1,IF(AND(YEAR(AbrDom1+18)=AñoCalendario,MONTH(AbrDom1+18)=4),AbrDom1+18,\"\"),IF(AND(YEAR(AbrDom1+25)=AñoCalendario,MONTH(AbrDom1+25)=4),AbrDom1+25,\"\"))","v":"2021-04-22"},{"$f":"IF(DAY(AbrDom1)=1,IF(AND(YEAR(AbrDom1+19)=AñoCalendario,MONTH(AbrDom1+19)=4),AbrDom1+19,\"\"),IF(AND(YEAR(AbrDom1+26)=AñoCalendario,MONTH(AbrDom1+26)=4),AbrDom1+26,\"\"))","v":"2021-04-23"},{"$f":"IF(DAY(AbrDom1)=1,IF(AND(YEAR(AbrDom1+20)=AñoCalendario,MONTH(AbrDom1+20)=4),AbrDom1+20,\"\"),IF(AND(YEAR(AbrDom1+27)=AñoCalendario,MONTH(AbrDom1+27)=4),AbrDom1+27,\"\"))","v":"2021-04-24"},{"$f":"IF(DAY(AbrDom1)=1,IF(AND(YEAR(AbrDom1+21)=AñoCalendario,MONTH(AbrDom1+21)=4),AbrDom1+21,\"\"),IF(AND(YEAR(AbrDom1+28)=AñoCalendario,MONTH(AbrDom1+28)=4),AbrDom1+28,\"\"))","v":"2021-04-25"}]
[null,{"$f":"IF(DAY(EneDom1)=1,IF(AND(YEAR(EneDom1+22)=AñoCalendario,MONTH(EneDom1+22)=1),EneDom1+22,\"\"),IF(AND(YEAR(EneDom1+29)=AñoCalendario,MONTH(EneDom1+29)=1),EneDom1+29,\"\"))","v":"2021-01-25"},{"$f":"IF(DAY(EneDom1)=1,IF(AND(YEAR(EneDom1+23)=AñoCalendario,MONTH(EneDom1+23)=1),EneDom1+23,\"\"),IF(AND(YEAR(EneDom1+30)=AñoCalendario,MONTH(EneDom1+30)=1),EneDom1+30,\"\"))","v":"2021-01-26"},{"$f":"IF(DAY(EneDom1)=1,IF(AND(YEAR(EneDom1+24)=AñoCalendario,MONTH(EneDom1+24)=1),EneDom1+24,\"\"),IF(AND(YEAR(EneDom1+31)=AñoCalendario,MONTH(EneDom1+31)=1),EneDom1+31,\"\"))","v":"2021-01-27"},{"$f":"IF(DAY(EneDom1)=1,IF(AND(YEAR(EneDom1+25)=AñoCalendario,MONTH(EneDom1+25)=1),EneDom1+25,\"\"),IF(AND(YEAR(EneDom1+32)=AñoCalendario,MONTH(EneDom1+32)=1),EneDom1+32,\"\"))","v":"2021-01-28"},{"$f":"IF(DAY(EneDom1)=1,IF(AND(YEAR(EneDom1+26)=AñoCalendario,MONTH(EneDom1+26)=1),EneDom1+26,\"\"),IF(AND(YEAR(EneDom1+33)=AñoCalendario,MONTH(EneDom1+33)=1),EneDom1+33,\"\"))","v":"2021-01-29"},{"$f":"IF(DAY(EneDom1)=1,IF(AND(YEAR(EneDom1+27)=AñoCalendario,MONTH(EneDom1+27)=1),EneDom1+27,\"\"),IF(AND(YEAR(EneDom1+34)=AñoCalendario,MONTH(EneDom1+34)=1),EneDom1+34,\"\"))","v":"2021-01-30"},{"$f":"IF(DAY(EneDom1)=1,IF(AND(YEAR(EneDom1+28)=AñoCalendario,MONTH(EneDom1+28)=1),EneDom1+28,\"\"),IF(AND(YEAR(EneDom1+35)=AñoCalendario,MONTH(EneDom1+35)=1),EneDom1+35,\"\"))","v":"2021-01-31"},null,{"$f":"IF(DAY(FebDom1)=1,IF(AND(YEAR(FebDom1+22)=AñoCalendario,MONTH(FebDom1+22)=2),FebDom1+22,\"\"),IF(AND(YEAR(FebDom1+29)=AñoCalendario,MONTH(FebDom1+29)=2),FebDom1+29,\"\"))","v":""},{"$f":"IF(DAY(FebDom1)=1,IF(AND(YEAR(FebDom1+23)=AñoCalendario,MONTH(FebDom1+23)=2),FebDom1+23,\"\"),IF(AND(YEAR(FebDom1+30)=AñoCalendario,MONTH(FebDom1+30)=2),FebDom1+30,\"\"))","v":""},{"$f":"IF(DAY(FebDom1)=1,IF(AND(YEAR(FebDom1+24)=AñoCalendario,MONTH(FebDom1+24)=2),FebDom1+24,\"\"),IF(AND(YEAR(FebDom1+31)=AñoCalendario,MONTH(FebDom1+31)=2),FebDom1+31,\"\"))","v":""},{"$f":"IF(DAY(FebDom1)=1,IF(AND(YEAR(FebDom1+25)=AñoCalendario,MONTH(FebDom1+25)=2),FebDom1+25,\"\"),IF(AND(YEAR(FebDom1+32)=AñoCalendario,MONTH(FebDom1+32)=2),FebDom1+32,\"\"))","v":""},{"$f":"IF(DAY(FebDom1)=1,IF(AND(YEAR(FebDom1+26)=AñoCalendario,MONTH(FebDom1+26)=2),FebDom1+26,\"\"),IF(AND(YEAR(FebDom1+33)=AñoCalendario,MONTH(FebDom1+33)=2),FebDom1+33,\"\"))","v":""},{"$f":"IF(DAY(FebDom1)=1,IF(AND(YEAR(FebDom1+27)=AñoCalendario,MONTH(FebDom1+27)=2),FebDom1+27,\"\"),IF(AND(YEAR(FebDom1+34)=AñoCalendario,MONTH(FebDom1+34)=2),FebDom1+34,\"\"))","v":""},{"$f":"IF(DAY(FebDom1)=1,IF(AND(YEAR(FebDom1+28)=AñoCalendario,MONTH(FebDom1+28)=2),FebDom1+28,\"\"),IF(AND(YEAR(FebDom1+35)=AñoCalendario,MONTH(FebDom1+35)=2),FebDom1+35,\"\"))","v":""},null,{"$f":"IF(DAY(MarDom1)=1,IF(AND(YEAR(MarDom1+22)=AñoCalendario,MONTH(MarDom1+22)=3),MarDom1+22,\"\"),IF(AND(YEAR(MarDom1+29)=AñoCalendario,MONTH(MarDom1+29)=3),MarDom1+29,\"\"))","v":"2021-03-29"},{"$f":"IF(DAY(MarDom1)=1,IF(AND(YEAR(MarDom1+23)=AñoCalendario,MONTH(MarDom1+23)=3),MarDom1+23,\"\"),IF(AND(YEAR(MarDom1+30)=AñoCalendario,MONTH(MarDom1+30)=3),MarDom1+30,\"\"))","v":"2021-03-30"},{"$f":"IF(DAY(MarDom1)=1,IF(AND(YEAR(MarDom1+24)=AñoCalendario,MONTH(MarDom1+24)=3),MarDom1+24,\"\"),IF(AND(YEAR(MarDom1+31)=AñoCalendario,MONTH(MarDom1+31)=3),MarDom1+31,\"\"))","v":"2021-03-31"},{"$f":"IF(DAY(MarDom1)=1,IF(AND(YEAR(MarDom1+25)=AñoCalendario,MONTH(MarDom1+25)=3),MarDom1+25,\"\"),IF(AND(YEAR(MarDom1+32)=AñoCalendario,MONTH(MarDom1+32)=3),MarDom1+32,\"\"))","v":""},{"$f":"IF(DAY(MarDom1)=1,IF(AND(YEAR(MarDom1+26)=AñoCalendario,MONTH(MarDom1+26)=3),MarDom1+26,\"\"),IF(AND(YEAR(MarDom1+33)=AñoCalendario,MONTH(MarDom1+33)=3),MarDom1+33,\"\"))","v":""},{"$f":"IF(DAY(MarDom1)=1,IF(AND(YEAR(MarDom1+27)=AñoCalendario,MONTH(MarDom1+27)=3),MarDom1+27,\"\"),IF(AND(YEAR(MarDom1+34)=AñoCalendario,MONTH(MarDom1+34)=3),MarDom1+34,\"\"))","v":""},{"$f":"IF(DAY(MarDom1)=1,IF(AND(YEAR(MarDom1+28)=AñoCalendario,MONTH(MarDom1+28)=3),MarDom1+28,\"\"),IF(AND(YEAR(MarDom1+35)=AñoCalendario,MONTH(MarDom1+35)=3),MarDom1+35,\"\"))","v":""},null,{"$f":"IF(DAY(AbrDom1)=1,IF(AND(YEAR(AbrDom1+22)=AñoCalendario,MONTH(AbrDom1+22)=4),AbrDom1+22,\"\"),IF(AND(YEAR(AbrDom1+29)=AñoCalendario,MONTH(AbrDom1+29)=4),AbrDom1+29,\"\"))","v":"2021-04-26"},{"$f":"IF(DAY(AbrDom1)=1,IF(AND(YEAR(AbrDom1+23)=AñoCalendario,MONTH(AbrDom1+23)=4),AbrDom1+23,\"\"),IF(AND(YEAR(AbrDom1+30)=AñoCalendario,MONTH(AbrDom1+30)=4),AbrDom1+30,\"\"))","v":"2021-04-27"},{"$f":"IF(DAY(AbrDom1)=1,IF(AND(YEAR(AbrDom1+24)=AñoCalendario,MONTH(AbrDom1+24)=4),AbrDom1+24,\"\"),IF(AND(YEAR(AbrDom1+31)=AñoCalendario,MONTH(AbrDom1+31)=4),AbrDom1+31,\"\"))","v":"2021-04-28"},{"$f":"IF(DAY(AbrDom1)=1,IF(AND(YEAR(AbrDom1+25)=AñoCalendario,MONTH(AbrDom1+25)=4),AbrDom1+25,\"\"),IF(AND(YEAR(AbrDom1+32)=AñoCalendario,MONTH(AbrDom1+32)=4),AbrDom1+32,\"\"))","v":"2021-04-29"},{"$f":"IF(DAY(AbrDom1)=1,IF(AND(YEAR(AbrDom1+26)=AñoCalendario,MONTH(AbrDom1+26)=4),AbrDom1+26,\"\"),IF(AND(YEAR(AbrDom1+33)=AñoCalendario,MONTH(AbrDom1+33)=4),AbrDom1+33,\"\"))","v":"2021-04-30"},{"$f":"IF(DAY(AbrDom1)=1,IF(AND(YEAR(AbrDom1+27)=AñoCalendario,MONTH(AbrDom1+27)=4),AbrDom1+27,\"\"),IF(AND(YEAR(AbrDom1+34)=AñoCalendario,MONTH(AbrDom1+34)=4),AbrDom1+34,\"\"))","v":""},{"$f":"IF(DAY(AbrDom1)=1,IF(AND(YEAR(AbrDom1+28)=AñoCalendario,MONTH(AbrDom1+28)=4),AbrDom1+28,\"\"),IF(AND(YEAR(AbrDom1+35)=AñoCalendario,MONTH(AbrDom1+35)=4),AbrDom1+35,\"\"))","v":""}]
[null,{"$f":"IF(DAY(EneDom1)=1,IF(AND(YEAR(EneDom1+29)=AñoCalendario,MONTH(EneDom1+29)=1),EneDom1+29,\"\"),IF(AND(YEAR(EneDom1+36)=AñoCalendario,MONTH(EneDom1+36)=1),EneDom1+36,\"\"))","v":""},{"$f":"IF(DAY(EneDom1)=1,IF(AND(YEAR(EneDom1+30)=AñoCalendario,MONTH(EneDom1+30)=1),EneDom1+30,\"\"),IF(AND(YEAR(EneDom1+37)=AñoCalendario,MONTH(EneDom1+37)=1),EneDom1+37,\"\"))","v":""},{"$f":"IF(DAY(EneDom1)=1,IF(AND(YEAR(EneDom1+31)=AñoCalendario,MONTH(EneDom1+31)=1),EneDom1+31,\"\"),IF(AND(YEAR(EneDom1+38)=AñoCalendario,MONTH(EneDom1+38)=1),EneDom1+38,\"\"))","v":""},{"$f":"IF(DAY(EneDom1)=1,IF(AND(YEAR(EneDom1+32)=AñoCalendario,MONTH(EneDom1+32)=1),EneDom1+32,\"\"),IF(AND(YEAR(EneDom1+39)=AñoCalendario,MONTH(EneDom1+39)=1),EneDom1+39,\"\"))","v":""},{"$f":"IF(DAY(EneDom1)=1,IF(AND(YEAR(EneDom1+33)=AñoCalendario,MONTH(EneDom1+33)=1),EneDom1+33,\"\"),IF(AND(YEAR(EneDom1+40)=AñoCalendario,MONTH(EneDom1+40)=1),EneDom1+40,\"\"))","v":""},{"$f":"IF(DAY(EneDom1)=1,IF(AND(YEAR(EneDom1+34)=AñoCalendario,MONTH(EneDom1+34)=1),EneDom1+34,\"\"),IF(AND(YEAR(EneDom1+41)=AñoCalendario,MONTH(EneDom1+41)=1),EneDom1+41,\"\"))","v":""},{"$f":"IF(DAY(EneDom1)=1,IF(AND(YEAR(EneDom1+35)=AñoCalendario,MONTH(EneDom1+35)=1),EneDom1+35,\"\"),IF(AND(YEAR(EneDom1+42)=AñoCalendario,MONTH(EneDom1+42)=1),EneDom1+42,\"\"))","v":""},null,{"$f":"IF(DAY(FebDom1)=1,IF(AND(YEAR(FebDom1+29)=AñoCalendario,MONTH(FebDom1+29)=2),FebDom1+29,\"\"),IF(AND(YEAR(FebDom1+36)=AñoCalendario,MONTH(FebDom1+36)=2),FebDom1+36,\"\"))","v":""},{"$f":"IF(DAY(FebDom1)=1,IF(AND(YEAR(FebDom1+30)=AñoCalendario,MONTH(FebDom1+30)=2),FebDom1+30,\"\"),IF(AND(YEAR(FebDom1+37)=AñoCalendario,MONTH(FebDom1+37)=2),FebDom1+37,\"\"))","v":""},{"$f":"IF(DAY(FebDom1)=1,IF(AND(YEAR(FebDom1+31)=AñoCalendario,MONTH(FebDom1+31)=2),FebDom1+31,\"\"),IF(AND(YEAR(FebDom1+38)=AñoCalendario,MONTH(FebDom1+38)=2),FebDom1+38,\"\"))","v":""},{"$f":"IF(DAY(FebDom1)=1,IF(AND(YEAR(FebDom1+32)=AñoCalendario,MONTH(FebDom1+32)=2),FebDom1+32,\"\"),IF(AND(YEAR(FebDom1+39)=AñoCalendario,MONTH(FebDom1+39)=2),FebDom1+39,\"\"))","v":""},{"$f":"IF(DAY(FebDom1)=1,IF(AND(YEAR(FebDom1+33)=AñoCalendario,MONTH(FebDom1+33)=2),FebDom1+33,\"\"),IF(AND(YEAR(FebDom1+40)=AñoCalendario,MONTH(FebDom1+40)=2),FebDom1+40,\"\"))","v":""},{"$f":"IF(DAY(FebDom1)=1,IF(AND(YEAR(FebDom1+34)=AñoCalendario,MONTH(FebDom1+34)=2),FebDom1+34,\"\"),IF(AND(YEAR(FebDom1+41)=AñoCalendario,MONTH(FebDom1+41)=2),FebDom1+41,\"\"))","v":""},{"$f":"IF(DAY(FebDom1)=1,IF(AND(YEAR(FebDom1+35)=AñoCalendario,MONTH(FebDom1+35)=2),FebDom1+35,\"\"),IF(AND(YEAR(FebDom1+42)=AñoCalendario,MONTH(FebDom1+42)=2),FebDom1+42,\"\"))","v":""},null,{"$f":"IF(DAY(MarDom1)=1,IF(AND(YEAR(MarDom1+29)=AñoCalendario,MONTH(MarDom1+29)=3),MarDom1+29,\"\"),IF(AND(YEAR(MarDom1+36)=AñoCalendario,MONTH(MarDom1+36)=3),MarDom1+36,\"\"))","v":""},{"$f":"IF(DAY(MarDom1)=1,IF(AND(YEAR(MarDom1+30)=AñoCalendario,MONTH(MarDom1+30)=3),MarDom1+30,\"\"),IF(AND(YEAR(MarDom1+37)=AñoCalendario,MONTH(MarDom1+37)=3),MarDom1+37,\"\"))","v":""},{"$f":"IF(DAY(MarDom1)=1,IF(AND(YEAR(MarDom1+31)=AñoCalendario,MONTH(MarDom1+31)=3),MarDom1+31,\"\"),IF(AND(YEAR(MarDom1+38)=AñoCalendario,MONTH(MarDom1+38)=3),MarDom1+38,\"\"))","v":""},{"$f":"IF(DAY(MarDom1)=1,IF(AND(YEAR(MarDom1+32)=AñoCalendario,MONTH(MarDom1+32)=3),MarDom1+32,\"\"),IF(AND(YEAR(MarDom1+39)=AñoCalendario,MONTH(MarDom1+39)=3),MarDom1+39,\"\"))","v":""},{"$f":"IF(DAY(MarDom1)=1,IF(AND(YEAR(MarDom1+33)=AñoCalendario,MONTH(MarDom1+33)=3),MarDom1+33,\"\"),IF(AND(YEAR(MarDom1+40)=AñoCalendario,MONTH(MarDom1+40)=3),MarDom1+40,\"\"))","v":""},{"$f":"IF(DAY(MarDom1)=1,IF(AND(YEAR(MarDom1+34)=AñoCalendario,MONTH(MarDom1+34)=3),MarDom1+34,\"\"),IF(AND(YEAR(MarDom1+41)=AñoCalendario,MONTH(MarDom1+41)=3),MarDom1+41,\"\"))","v":""},{"$f":"IF(DAY(MarDom1)=1,IF(AND(YEAR(MarDom1+35)=AñoCalendario,MONTH(MarDom1+35)=3),MarDom1+35,\"\"),IF(AND(YEAR(MarDom1+42)=AñoCalendario,MONTH(MarDom1+42)=3),MarDom1+42,\"\"))","v":""},null,{"$f":"IF(DAY(AbrDom1)=1,IF(AND(YEAR(AbrDom1+29)=AñoCalendario,MONTH(AbrDom1+29)=4),AbrDom1+29,\"\"),IF(AND(YEAR(AbrDom1+36)=AñoCalendario,MONTH(AbrDom1+36)=4),AbrDom1+36,\"\"))","v":""},{"$f":"IF(DAY(AbrDom1)=1,IF(AND(YEAR(AbrDom1+30)=AñoCalendario,MONTH(AbrDom1+30)=4),AbrDom1+30,\"\"),IF(AND(YEAR(AbrDom1+37)=AñoCalendario,MONTH(AbrDom1+37)=4),AbrDom1+37,\"\"))","v":""},{"$f":"IF(DAY(AbrDom1)=1,IF(AND(YEAR(AbrDom1+31)=AñoCalendario,MONTH(AbrDom1+31)=4),AbrDom1+31,\"\"),IF(AND(YEAR(AbrDom1+38)=AñoCalendario,MONTH(AbrDom1+38)=4),AbrDom1+38,\"\"))","v":""},{"$f":"IF(DAY(AbrDom1)=1,IF(AND(YEAR(AbrDom1+32)=AñoCalendario,MONTH(AbrDom1+32)=4),AbrDom1+32,\"\"),IF(AND(YEAR(AbrDom1+39)=AñoCalendario,MONTH(AbrDom1+39)=4),AbrDom1+39,\"\"))","v":""},{"$f":"IF(DAY(AbrDom1)=1,IF(AND(YEAR(AbrDom1+33)=AñoCalendario,MONTH(AbrDom1+33)=4),AbrDom1+33,\"\"),IF(AND(YEAR(AbrDom1+40)=AñoCalendario,MONTH(AbrDom1+40)=4),AbrDom1+40,\"\"))","v":""},{"$f":"IF(DAY(AbrDom1)=1,IF(AND(YEAR(AbrDom1+34)=AñoCalendario,MONTH(AbrDom1+34)=4),AbrDom1+34,\"\"),IF(AND(YEAR(AbrDom1+41)=AñoCalendario,MONTH(AbrDom1+41)=4),AbrDom1+41,\"\"))","v":""},{"$f":"IF(DAY(AbrDom1)=1,IF(AND(YEAR(AbrDom1+35)=AñoCalendario,MONTH(AbrDom1+35)=4),AbrDom1+35,\"\"),IF(AND(YEAR(AbrDom1+42)=AñoCalendario,MONTH(AbrDom1+42)=4),AbrDom1+42,\"\"))","v":""}]
[]
[null,"Mayo",{"$nulls":7},"Junio",{"$nulls":7},"Julio",{"$nulls":7},"Agosto"]
[null,"Lu","Ma","Mi","Ju","Vi","Sa","Do",null,"Lu","Ma","Mi","Ju","Vi","Sa","Do",null,"Lu","Ma","Mi","Ju","Vi","Sa","Do",null,"Lu","Ma","Mi","Ju","Vi","Sa","Do"]
[null,{"$f":"IF(DAY(MayDom1)=1,\"\",IF(AND(YEAR(MayDom1+1)=AñoCalendario,MONTH(MayDom1+1)=5),MayDom1+1,\"\"))","v":""},{"$f":"IF(DAY(MayDom1)=1,\"\",IF(AND(YEAR(MayDom1+2)=AñoCalendario,MONTH(MayDom1+2)=5),MayDom1+2,\"\"))","v":""},{"$f":"IF(DAY(MayDom1)=1,\"\",IF(AND(YEAR(MayDom1+3)=AñoCalendario,MONTH(MayDom1+3)=5),MayDom1+3,\"\"))","v":""},{"$f":"IF(DAY(MayDom1)=1,\"\",IF(AND(YEAR(MayDom1+4)=AñoCalendario,MONTH(MayDom1+4)=5),MayDom1+4,\"\"))","v":""},{"$f":"IF(DAY(MayDom1)=1,\"\",IF(AND(YEAR(MayDom1+5)=AñoCalendario,MONTH(MayDom1+5)=5),MayDom1+5,\"\"))","v":""},{"$f":"IF(DAY(MayDom1)=1,\"\",IF(AND(YEAR(MayDom1+6)=AñoCalendario,MONTH(MayDom1+6)=5),MayDom1+6,\"\"))","v":"2021-05-01"},{"$f":"IF(DAY(MayDom1)=1,IF(AND(YEAR(MayDom1)=AñoCalendario,MONTH(MayDom1)=5),MayDom1,\"\"),IF(AND(YEAR(MayDom1+7)=AñoCalendario,MONTH(MayDom1+7)=5),MayDom1+7,\"\"))","v":"2021-05-02"},null,{"$f":"IF(DAY(JunDom1)=1,\"\",IF(AND(YEAR(JunDom1+1)=AñoCalendario,MONTH(JunDom1+1)=6),JunDom1+1,\"\"))","v":""},{"$f":"IF(DAY(JunDom1)=1,\"\",IF(AND(YEAR(JunDom1+2)=AñoCalendario,MONTH(JunDom1+2)=6),JunDom1+2,\"\"))","v":"2021-06-01"},{"$f":"IF(DAY(JunDom1)=1,\"\",IF(AND(YEAR(JunDom1+3)=AñoCalendario,MONTH(JunDom1+3)=6),JunDom1+3,\"\"))","v":"2021-06-02"},{"$f":"IF(DAY(JunDom1)=1,\"\",IF(AND(YEAR(JunDom1+4)=AñoCalendario,MONTH(JunDom1+4)=6),JunDom1+4,\"\"))","v":"2021-06-03"},{"$f":"IF(DAY(JunDom1)=1,\"\",IF(AND(YEAR(JunDom1+5)=AñoCalendario,MONTH(JunDom1+5)=6),JunDom1+5,\"\"))","v":"2021-06-04"},{"$f":"IF(DAY(JunDom1)=1,\"\",IF(AND(YEAR(JunDom1+6)=AñoCalendario,MONTH(JunDom1+6)=6),JunDom1+6,\"\"))","v":"2021-06-05"},{"$f":"IF(DAY(JunDom1)=1,IF(AND(YEAR(JunDom1)=AñoCalendario,MONTH(JunDom1)=6),JunDom1,\"\"),IF(AND(YEAR(JunDom1+7)=AñoCalendario,MONTH(JunDom1+7)=6),JunDom1+7,\"\"))","v":"2021-06-06"},null,{"$f":"IF(DAY(JulDom1)=1,\"\",IF(AND(YEAR(JulDom1+1)=AñoCalendario,MONTH(JulDom1+1)=7),JulDom1+1,\"\"))","v":""},{"$f":"IF(DAY(JulDom1)=1,\"\",IF(AND(YEAR(JulDom1+2)=AñoCalendario,MONTH(JulDom1+2)=7),JulDom1+2,\"\"))","v":""},{"$f":"IF(DAY(JulDom1)=1,\"\",IF(AND(YEAR(JulDom1+3)=AñoCalendario,MONTH(JulDom1+3)=7),JulDom1+3,\"\"))","v":""},{"$f":"IF(DAY(JulDom1)=1,\"\",IF(AND(YEAR(JulDom1+4)=AñoCalendario,MONTH(JulDom1+4)=7),JulDom1+4,\"\"))","v":"2021-07-01"},{"$f":"IF(DAY(JulDom1)=1,\"\",IF(AND(YEAR(JulDom1+5)=AñoCalendario,MONTH(JulDom1+5)=7),JulDom1+5,\"\"))","v":"2021-07-02"},{"$f":"IF(DAY(JulDom1)=1,\"\",IF(AND(YEAR(JulDom1+6)=AñoCalendario,MONTH(JulDom1+6)=7),JulDom1+6,\"\"))","v":"2021-07-03"},{"$f":"IF(DAY(JulDom1)=1,IF(AND(YEAR(JulDom1)=AñoCalendario,MONTH(JulDom1)=7),JulDom1,\"\"),IF(AND(YEAR(JulDom1+7)=AñoCalendario,MONTH(JulDom1+7)=7),JulDom1+7,\"\"))","v":"2021-07-04"},null,{"$f":"IF(DAY(AgoDom1)=1,\"\",IF(AND(YEAR(AgoDom1+1)=AñoCalendario,MONTH(AgoDom1+1)=8),AgoDom1+1,\"\"))","v":""},{"$f":"IF(DAY(AgoDom1)=1,\"\",IF(AND(YEAR(AgoDom1+2)=AñoCalendario,MONTH(AgoDom1+2)=8),AgoDom1+2,\"\"))","v":""},{"$f":"IF(DAY(AgoDom1)=1,\"\",IF(AND(YEAR(AgoDom1+3)=AñoCalendario,MONTH(AgoDom1+3)=8),AgoDom1+3,\"\"))","v":""},{"$f":"IF(DAY(AgoDom1)=1,\"\",IF(AND(YEAR(AgoDom1+4)=AñoCalendario,MONTH(AgoDom1+4)=8),AgoDom1+4,\"\"))","v":""},{"$f":"IF(DAY(AgoDom1)=1,\"\",IF(AND(YEAR(AgoDom1+5)=AñoCalendario,MONTH(AgoDom1+5)=8),AgoDom1+5,\"\"))","v":""},{"$f":"IF(DAY(AgoDom1)=1,\"\",IF(AND(YEAR(AgoDom1+6)=AñoCalendario,MONTH(AgoDom1+6)=8),AgoDom1+6,\"\"))","v":""},{"$f":"IF(DAY(AgoDom1)=1,IF(AND(YEAR(AgoDom1)=AñoCalendario,MONTH(AgoDom1)=8),AgoDom1,\"\"),IF(AND(YEAR(AgoDom1+7)=AñoCalendario,MONTH(AgoDom1+7)=8),AgoDom1+7,\"\"))","v":"2021-08-01"}]
[null,{"$f":"IF(DAY(MayDom1)=1,IF(AND(YEAR(MayDom1+1)=AñoCalendario,MONTH(MayDom1+1)=5),MayDom1+1,\"\"),IF(AND(YEAR(MayDom1+8)=AñoCalendario,MONTH(MayDom1+8)=5),MayDom1+8,\"\"))","v":"2021-05-03"},{"$f":"IF(DAY(MayDom1)=1,IF(AND(YEAR(MayDom1+2)=AñoCalendario,MONTH(MayDom1+2)=5),MayDom1+2,\"\"),IF(AND(YEAR(MayDom1+9)=AñoCalendario,MONTH(MayDom1+9)=5),MayDom1+9,\"\"))","v":"2021-05-04"},{"$f":"IF(DAY(MayDom1)=1,IF(AND(YEAR(MayDom1+3)=AñoCalendario,MONTH(MayDom1+3)=5),MayDom1+3,\"\"),IF(AND(YEAR(MayDom1+10)=AñoCalendario,MONTH(MayDom1+10)=5),MayDom1+10,\"\"))","v":"2021-05-05"},{"$f":"IF(DAY(MayDom1)=1,IF(AND(YEAR(MayDom1+4)=AñoCalendario,MONTH(MayDom1+4)=5),MayDom1+4,\"\"),IF(AND(YEAR(MayDom1+11)=AñoCalendario,MONTH(MayDom1+11)=5),MayDom1+11,\"\"))","v":"2021-05-06"},{"$f":"IF(DAY(MayDom1)=1,IF(AND(YEAR(MayDom1+5)=AñoCalendario,MONTH(MayDom1+5)=5),MayDom1+5,\"\"),IF(AND(YEAR(MayDom1+12)=AñoCalendario,MONTH(MayDom1+12)=5),MayDom1+12,\"\"))","v":"2021-05-07"},{"$f":"IF(DAY(MayDom1)=1,IF(AND(YEAR(MayDom1+6)=AñoCalendario,MONTH(MayDom1+6)=5),MayDom1+6,\"\"),IF(AND(YEAR(MayDom1+13)=AñoCalendario,MONTH(MayDom1+13)=5),MayDom1+13,\"\"))","v":"2021-05-08"},{"$f":"IF(DAY(MayDom1)=1,IF(AND(YEAR(MayDom1+7)=AñoCalendario,MONTH(MayDom1+7)=5),MayDom1+7,\"\"),IF(AND(YEAR(MayDom1+14)=AñoCalendario,MONTH(MayDom1+14)=5),MayDom1+14,\"\"))","v":"2021-05-09"},null,{"$f":"IF(DAY(JunDom1)=1,IF(AND(YEAR(JunDom1+1)=AñoCalendario,MONTH(JunDom1+1)=6),JunDom1+1,\"\"),IF(AND(YEAR(JunDom1+8)=AñoCalendario,MONTH(JunDom1+8)=6),JunDom1+8,\"\"))","v":"2021-06-07"},{"$f":"IF(DAY(JunDom1)=1,IF(AND(YEAR(JunDom1+2)=AñoCalendario,MONTH(JunDom1+2)=6),JunDom1+2,\"\"),IF(AND(YEAR(JunDom1+9)=AñoCalendario,MONTH(JunDom1+9)=6),JunDom1+9,\"\"))","v":"2021-06-08"},{"$f":"IF(DAY(JunDom1)=1,IF(AND(YEAR(JunDom1+3)=AñoCalendario,MONTH(JunDom1+3)=6),JunDom1+3,\"\"),IF(AND(YEAR(JunDom1+10)=AñoCalendario,MONTH(JunDom1+10)=6),JunDom1+10,\"\"))","v":"2021-06-09"},{"$f":"IF(DAY(JunDom1)=1,IF(AND(YEAR(JunDom1+4)=AñoCalendario,MONTH(JunDom1+4)=6),JunDom1+4,\"\"),IF(AND(YEAR(JunDom1+11)=AñoCalendario,MONTH(JunDom1+11)=6),JunDom1+11,\"\"))","v":"2021-06-10"},{"$f":"IF(DAY(JunDom1)=1,IF(AND(YEAR(JunDom1+5)=AñoCalendario,MONTH(JunDom1+5)=6),JunDom1+5,\"\"),IF(AND(YEAR(JunDom1+12)=AñoCalendario,MONTH(JunDom1+12)=6),JunDom1+12,\"\"))","v":"2021-06-11"},{"$f":"IF(DAY(JunDom1)=1,IF(AND(YEAR(JunDom1+6)=AñoCalendario,MONTH(JunDom1+6)=6),JunDom1+6,\"\"),IF(AND(YEAR(JunDom1+13)=AñoCalendario,MONTH(JunDom1+13)=6),JunDom1+13,\"\"))","v":"2021-06-12"},{"$f":"IF(DAY(JunDom1)=1,IF(AND(YEAR(JunDom1+7)=AñoCalendario,MONTH(JunDom1+7)=6),JunDom1+7,\"\"),IF(AND(YEAR(JunDom1+14)=AñoCalendario,MONTH(JunDom1+14)=6),JunDom1+14,\"\"))","v":"2021-06-13"},null,{"$f":"IF(DAY(JulDom1)=1,IF(AND(YEAR(JulDom1+1)=AñoCalendario,MONTH(JulDom1+1)=7),JulDom1+1,\"\"),IF(AND(YEAR(JulDom1+8)=AñoCalendario,MONTH(JulDom1+8)=7),JulDom1+8,\"\"))","v":"2021-07-05"},{"$f":"IF(DAY(JulDom1)=1,IF(AND(YEAR(JulDom1+2)=AñoCalendario,MONTH(JulDom1+2)=7),JulDom1+2,\"\"),IF(AND(YEAR(JulDom1+9)=AñoCalendario,MONTH(JulDom1+9)=7),JulDom1+9,\"\"))","v":"2021-07-06"},{"$f":"IF(DAY(JulDom1)=1,IF(AND(YEAR(JulDom1+3)=AñoCalendario,MONTH(JulDom1+3)=7),JulDom1+3,\"\"),IF(AND(YEAR(JulDom1+10)=AñoCalendario,MONTH(JulDom1+10)=7),JulDom1+10,\"\"))","v":"2021-07-07"},{"$f":"IF(DAY(JulDom1)=1,IF(AND(YEAR(JulDom1+4)=AñoCalendario,MONTH(JulDom1+4)=7),JulDom1+4,\"\"),IF(AND(YEAR(JulDom1+11)=AñoCalendario,MONTH(JulDom1+11)=7),JulDom1+11,\"\"))","v":"2021-07-08"},{"$f":"IF(DAY(JulDom1)=1,IF(AND(YEAR(JulDom1+5)=AñoCalendario,MONTH(JulDom1+5)=7),JulDom1+5,\"\"),IF(AND(YEAR(JulDom1+12)=AñoCalendario,MONTH(JulDom1+12)=7),JulDom1+12,\"\"))","v":"2021-07-09"},{"$f":"IF(DAY(JulDom1)=1,IF(AND(YEAR(JulDom1+6)=AñoCalendario,MONTH(JulDom1+6)=7),JulDom1+6,\"\"),IF(AND(YEAR(JulDom1+13)=AñoCalendario,MONTH(JulDom1+13)=7),JulDom1+13,\"\"))","v":"2021-07-10"},{"$f":"IF(DAY(JulDom1)=1,IF(AND(YEAR(JulDom1+7)=AñoCalendario,MONTH(JulDom1+7)=7),JulDom1+7,\"\"),IF(AND(YEAR(JulDom1+14)=AñoCalendario,MONTH(JulDom1+14)=7),JulDom1+14,\"\"))","v":"2021-07-11"},null,{"$f":"IF(DAY(AgoDom1)=1,IF(AND(YEAR(AgoDom1+1)=AñoCalendario,MONTH(AgoDom1+1)=8),AgoDom1+1,\"\"),IF(AND(YEAR(AgoDom1+8)=AñoCalendario,MONTH(AgoDom1+8)=8),AgoDom1+8,\"\"))","v":"2021-08-02"},{"$f":"IF(DAY(AgoDom1)=1,IF(AND(YEAR(AgoDom1+2)=AñoCalendario,MONTH(AgoDom1+2)=8),AgoDom1+2,\"\"),IF(AND(YEAR(AgoDom1+9)=AñoCalendario,MONTH(AgoDom1+9)=8),AgoDom1+9,\"\"))","v":"2021-08-03"},{"$f":"IF(DAY(AgoDom1)=1,IF(AND(YEAR(AgoDom1+3)=AñoCalendario,MONTH(AgoDom1+3)=8),AgoDom1+3,\"\"),IF(AND(YEAR(AgoDom1+10)=AñoCalendario,MONTH(AgoDom1+10)=8),AgoDom1+10,\"\"))","v":"2021-08-04"},{"$f":"IF(DAY(AgoDom1)=1,IF(AND(YEAR(AgoDom1+4)=AñoCalendario,MONTH(AgoDom1+4)=8),AgoDom1+4,\"\"),IF(AND(YEAR(AgoDom1+11)=AñoCalendario,MONTH(AgoDom1+11)=8),AgoDom1+11,\"\"))","v":"2021-08-05"},{"$f":"IF(DAY(AgoDom1)=1,IF(AND(YEAR(AgoDom1+5)=AñoCalendario,MONTH(AgoDom1+5)=8),AgoDom1+5,\"\"),IF(AND(YEAR(AgoDom1+12)=AñoCalendario,MONTH(AgoDom1+12)=8),AgoDom1+12,\"\"))","v":"2021-08-06"},{"$f":"IF(DAY(AgoDom1)=1,IF(AND(YEAR(AgoDom1+6)=AñoCalendario,MONTH(AgoDom1+6)=8),AgoDom1+6,\"\"),IF(AND(YEAR(AgoDom1+13)=AñoCalendario,MONTH(AgoDom1+13)=8),AgoDom1+13,\"\"))","v":"2021-08-07"},{"$f":"IF(DAY(AgoDom1)=1,IF(AND(YEAR(AgoDom1+7)=AñoCalendario,MONTH(AgoDom1+7)=8),AgoDom1+7,\"\"),IF(AND(YEAR(AgoDom1+14)=AñoCalendario,MONTH(AgoDom1+14)=8),AgoDom1+14,\"\"))","v":"2021-08-08"}]
[null,{"$f":"IF(DAY(MayDom1)=1,IF(AND(YEAR(MayDom1+8)=AñoCalendario,MONTH(MayDom1+8)=5),MayDom1+8,\"\"),IF(AND(YEAR(MayDom1+15)=AñoCalendario,MONTH(MayDom1+15)=5),MayDom1+15,\"\"))","v":"2021-05-10"},{"$f":"IF(DAY(MayDom1)=1,IF(AND(YEAR(MayDom1+9)=AñoCalendario,MONTH(MayDom1+9)=5),MayDom1+9,\"\"),IF(AND(YEAR(MayDom1+16)=AñoCalendario,MONTH(MayDom1+16)=5),MayDom1+16,\"\"))","v":"2021-05-11"},{"$f":"IF(DAY(MayDom1)=1,IF(AND(YEAR(MayDom1+10)=AñoCalendario,MONTH(MayDom1+10)=5),MayDom1+10,\"\"),IF(AND(YEAR(MayDom1+17)=AñoCalendario,MONTH(MayDom1+17)=5),MayDom1+17,\"\"))","v":"2021-05-12"},{"$f":"IF(DAY(MayDom1)=1,IF(AND(YEAR(MayDom1+11)=AñoCalendario,MONTH(MayDom1+11)=5),MayDom1+11,\"\"),IF(AND(YEAR(MayDom1+18)=AñoCalendario,MONTH(MayDom1+18)=5),MayDom1+18,\"\"))","v":"2021-05-13"},{"$f":"IF(DAY(MayDom1)=1,IF(AND(YEAR(MayDom1+12)=AñoCalendario,MONTH(MayDom1+12)=5),MayDom1+12,\"\"),IF(AND(YEAR(MayDom1+19)=AñoCalendario,MONTH(MayDom1+19)=5),MayDom1+19,\"\"))","v":"2021-05-14"},{"$f":"IF(DAY(MayDom1)=1,IF(AND(YEAR(MayDom1+13)=AñoCalendario,MONTH(MayDom1+13)=5),MayDom1+13,\"\"),IF(AND(YEAR(MayDom1+20)=AñoCalendario,MONTH(MayDom1+20)=5),MayDom1+20,\"\"))","v":"2021-05-15"},{"$f":"IF(DAY(MayDom1)=1,IF(AND(YEAR(MayDom1+14)=AñoCalendario,MONTH(MayDom1+14)=5),MayDom1+14,\"\"),IF(AND(YEAR(MayDom1+21)=AñoCalendario,MONTH(MayDom1+21)=5),MayDom1+21,\"\"))","v":"2021-05-16"},null,{"$f":"IF(DAY(JunDom1)=1,IF(AND(YEAR(JunDom1+8)=AñoCalendario,MONTH(JunDom1+8)=6),JunDom1+8,\"\"),IF(AND(YEAR(JunDom1+15)=AñoCalendario,MONTH(JunDom1+15)=6),JunDom1+15,\"\"))","v":"2021-06-14"},{"$f":"IF(DAY(JunDom1)=1,IF(AND(YEAR(JunDom1+9)=AñoCalendario,MONTH(JunDom1+9)=6),JunDom1+9,\"\"),IF(AND(YEAR(JunDom1+16)=AñoCalendario,MONTH(JunDom1+16)=6),JunDom1+16,\"\"))","v":"2021-06-15"},{"$f":"IF(DAY(JunDom1)=1,IF(AND(YEAR(JunDom1+10)=AñoCalendario,MONTH(JunDom1+10)=6),JunDom1+10,\"\"),IF(AND(YEAR(JunDom1+17)=AñoCalendario,MONTH(JunDom1+17)=6),JunDom1+17,\"\"))","v":"2021-06-16"},{"$f":"IF(DAY(JunDom1)=1,IF(AND(YEAR(JunDom1+11)=AñoCalendario,MONTH(JunDom1+11)=6),JunDom1+11,\"\"),IF(AND(YEAR(JunDom1+18)=AñoCalendario,MONTH(JunDom1+18)=6),JunDom1+18,\"\"))","v":"2021-06-17"},{"$f":"IF(DAY(JunDom1)=1,IF(AND(YEAR(JunDom1+12)=AñoCalendario,MONTH(JunDom1+12)=6),JunDom1+12,\"\"),IF(AND(YEAR(JunDom1+19)=AñoCalendario,MONTH(JunDom1+19)=6),JunDom1+19,\"\"))","v":"2021-06-18"},{"$f":"IF(DAY(JunDom1)=1,IF(AND(YEAR(JunDom1+13)=AñoCalendario,MONTH(JunDom1+13)=6),JunDom1+13,\"\"),IF(AND(YEAR(JunDom1+20)=AñoCalendario,MONTH(JunDom1+20)=6),JunDom1+20,\"\"))","v":"2021-06-19"},{"$f":"IF(DAY(JunDom1)=1,IF(AND(YEAR(JunDom1+14)=AñoCalendario,MONTH(JunDom1+14)=6),JunDom1+14,\"\"),IF(AND(YEAR(JunDom1+21)=AñoCalendario,MONTH(JunDom1+21)=6),JunDom1+21,\"\"))","v":"2021-06-20"},null,{"$f":"IF(DAY(JulDom1)=1,IF(AND(YEAR(JulDom1+8)=AñoCalendario,MONTH(JulDom1+8)=7),JulDom1+8,\"\"),IF(AND(YEAR(JulDom1+15)=AñoCalendario,MONTH(JulDom1+15)=7),JulDom1+15,\"\"))","v":"2021-07-12"},{"$f":"IF(DAY(JulDom1)=1,IF(AND(YEAR(JulDom1+9)=AñoCalendario,MONTH(JulDom1+9)=7),JulDom1+9,\"\"),IF(AND(YEAR(JulDom1+16)=AñoCalendario,MONTH(JulDom1+16)=7),JulDom1+16,\"\"))","v":"2021-07-13"},{"$f":"IF(DAY(JulDom1)=1,IF(AND(YEAR(JulDom1+10)=AñoCalendario,MONTH(JulDom1+10)=7),JulDom1+10,\"\"),IF(AND(YEAR(JulDom1+17)=AñoCalendario,MONTH(JulDom1+17)=7),JulDom1+17,\"\"))","v":"2021-07-14"},{"$f":"IF(DAY(JulDom1)=1,IF(AND(YEAR(JulDom1+11)=AñoCalendario,MONTH(JulDom1+11)=7),JulDom1+11,\"\"),IF(AND(YEAR(JulDom1+18)=AñoCalendario,MONTH(JulDom1+18)=7),JulDom1+18,\"\"))","v":"2021-07-15"},{"$f":"IF(DAY(JulDom1)=1,IF(AND(YEAR(JulDom1+12)=AñoCalendario,MONTH(JulDom1+12)=7),JulDom1+12,\"\"),IF(AND(YEAR(JulDom1+19)=AñoCalendario,MONTH(JulDom1+19)=7),JulDom1+19,\"\"))","v":"2021-07-16"},{"$f":"IF(DAY(JulDom1)=1,IF(AND(YEAR(JulDom1+13)=AñoCalendario,MONTH(JulDom1+13)=7),JulDom1+13,\"\"),IF(AND(YEAR(JulDom1+20)=AñoCalendario,MONTH(JulDom1+20)=7),JulDom1+20,\"\"))","v":"2021-07-17"},{"$f":"IF(DAY(JulDom1)=1,IF(AND(YEAR(JulDom1+14)=AñoCalendario,MONTH(JulDom1+14)=7),JulDom1+14,\"\"),IF(AND(YEAR(JulDom1+21)=AñoCalendario,MONTH(JulDom1+21)=7),JulDom1+21,\"\"))","v":"2021-07-18"},null,{"$f":"IF(DAY(AgoDom1)=1,IF(AND(YEAR(AgoDom1+8)=AñoCalendario,MONTH(AgoDom1+8)=8),AgoDom1+8,\"\"),IF(AND(YEAR(AgoDom1+15)=AñoCalendario,MONTH(AgoDom1+15)=8),AgoDom1+15,\"\"))","v":"2021-08-09"},{"$f":"IF(DAY(AgoDom1)=1,IF(AND(YEAR(AgoDom1+9)=AñoCalendario,MONTH(AgoDom1+9)=8),AgoDom1+9,\"\"),IF(AND(YEAR(AgoDom1+16)=AñoCalendario,MONTH(AgoDom1+16)=8),AgoDom1+16,\"\"))","v":"2021-08-10"},{"$f":"IF(DAY(AgoDom1)=1,IF(AND(YEAR(AgoDom1+10)=AñoCalendario,MONTH(AgoDom1+10)=8),AgoDom1+10,\"\"),IF(AND(YEAR(AgoDom1+17)=AñoCalendario,MONTH(AgoDom1+17)=8),AgoDom1+17,\"\"))","v":"2021-08-11"},{"$f":"IF(DAY(AgoDom1)=1,IF(AND(YEAR(AgoDom1+11)=AñoCalendario,MONTH(AgoDom1+11)=8),AgoDom1+11,\"\"),IF(AND(YEAR(AgoDom1+18)=AñoCalendario,MONTH(AgoDom1+18)=8),AgoDom1+18,\"\"))","v":"2021-08-12"},{"$f":"IF(DAY(AgoDom1)=1,IF(AND(YEAR(AgoDom1+12)=AñoCalendario,MONTH(AgoDom1+12)=8),AgoDom1+12,\"\"),IF(AND(YEAR(AgoDom1+19)=AñoCalendario,MONTH(AgoDom1+19)=8),AgoDom1+19,\"\"))","v":"2021-08-13"},{"$f":"IF(DAY(AgoDom1)=1,IF(AND(YEAR(AgoDom1+13)=AñoCalendario,MONTH(AgoDom1+13)=8),AgoDom1+13,\"\"),IF(AND(YEAR(AgoDom1+20)=AñoCalendario,MONTH(AgoDom1+20)=8),AgoDom1+20,\"\"))","v":"2021-08-14"},{"$f":"IF(DAY(AgoDom1)=1,IF(AND(YEAR(AgoDom1+14)=AñoCalendario,MONTH(AgoDom1+14)=8),AgoDom1+14,\"\"),IF(AND(YEAR(AgoDom1+21)=AñoCalendario,MONTH(AgoDom1+21)=8),AgoDom1+21,\"\"))","v":"2021-08-15"}]
[null,{"$f":"IF(DAY(MayDom1)=1,IF(AND(YEAR(MayDom1+15)=AñoCalendario,MONTH(MayDom1+15)=5),MayDom1+15,\"\"),IF(AND(YEAR(MayDom1+22)=AñoCalendario,MONTH(MayDom1+22)=5),MayDom1+22,\"\"))","v":"2021-05-17"},{"$f":"IF(DAY(MayDom1)=1,IF(AND(YEAR(MayDom1+16)=AñoCalendario,MONTH(MayDom1+16)=5),MayDom1+16,\"\"),IF(AND(YEAR(MayDom1+23)=AñoCalendario,MONTH(MayDom1+23)=5),MayDom1+23,\"\"))","v":"2021-05-18"},{"$f":"IF(DAY(MayDom1)=1,IF(AND(YEAR(MayDom1+17)=AñoCalendario,MONTH(MayDom1+17)=5),MayDom1+17,\"\"),IF(AND(YEAR(MayDom1+24)=AñoCalendario,MONTH(MayDom1+24)=5),MayDom1+24,\"\"))","v":"2021-05-19"},{"$f":"IF(DAY(MayDom1)=1,IF(AND(YEAR(MayDom1+18)=AñoCalendario,MONTH(MayDom1+18)=5),MayDom1+18,\"\"),IF(AND(YEAR(MayDom1+25)=AñoCalendario,MONTH(MayDom1+25)=5),MayDom1+25,\"\"))","v":"2021-05-20"},{"$f":"IF(DAY(MayDom1)=1,IF(AND(YEAR(MayDom1+19)=AñoCalendario,MONTH(MayDom1+19)=5),MayDom1+19,\"\"),IF(AND(YEAR(MayDom1+26)=AñoCalendario,MONTH(MayDom1+26)=5),MayDom1+26,\"\"))","v":"2021-05-21"},{"$f":"IF(DAY(MayDom1)=1,IF(AND(YEAR(MayDom1+20)=AñoCalendario,MONTH(MayDom1+20)=5),MayDom1+20,\"\"),IF(AND(YEAR(MayDom1+27)=AñoCalendario,MONTH(MayDom1+27)=5),MayDom1+27,\"\"))","v":"2021-05-22"},{"$f":"IF(DAY(MayDom1)=1,IF(AND(YEAR(MayDom1+21)=AñoCalendario,MONTH(MayDom1+21)=5),MayDom1+21,\"\"),IF(AND(YEAR(MayDom1+28)=AñoCalendario,MONTH(MayDom1+28)=5),MayDom1+28,\"\"))","v":"2021-05-23"},null,{"$f":"IF(DAY(JunDom1)=1,IF(AND(YEAR(JunDom1+15)=AñoCalendario,MONTH(JunDom1+15)=6),JunDom1+15,\"\"),IF(AND(YEAR(JunDom1+22)=AñoCalendario,MONTH(JunDom1+22)=6),JunDom1+22,\"\"))","v":"2021-06-21"},{"$f":"IF(DAY(JunDom1)=1,IF(AND(YEAR(JunDom1+16)=AñoCalendario,MONTH(JunDom1+16)=6),JunDom1+16,\"\"),IF(AND(YEAR(JunDom1+23)=AñoCalendario,MONTH(JunDom1+23)=6),JunDom1+23,\"\"))","v":"2021-06-22"},{"$f":"IF(DAY(JunDom1)=1,IF(AND(YEAR(JunDom1+17)=AñoCalendario,MONTH(JunDom1+17)=6),JunDom1+17,\"\"),IF(AND(YEAR(JunDom1+24)=AñoCalendario,MONTH(JunDom1+24)=6),JunDom1+24,\"\"))","v":"2021-06-23"},{"$f":"IF(DAY(JunDom1)=1,IF(AND(YEAR(JunDom1+18)=AñoCalendario,MONTH(JunDom1+18)=6),JunDom1+18,\"\"),IF(AND(YEAR(JunDom1+25)=AñoCalendario,MONTH(JunDom1+25)=6),JunDom1+25,\"\"))","v":"2021-06-24"},{"$f":"IF(DAY(JunDom1)=1,IF(AND(YEAR(JunDom1+19)=AñoCalendario,MONTH(JunDom1+19)=6),JunDom1+19,\"\"),IF(AND(YEAR(JunDom1+26)=AñoCalendario,MONTH(JunDom1+26)=6),JunDom1+26,\"\"))","v":"2021-06-25"},{"$f":"IF(DAY(JunDom1)=1,IF(AND(YEAR(JunDom1+20)=AñoCalendario,MONTH(JunDom1+20)=6),JunDom1+20,\"\"),IF(AND(YEAR(JunDom1+27)=AñoCalendario,MONTH(JunDom1+27)=6),JunDom1+27,\"\"))","v":"2021-06-26"},{"$f":"IF(DAY(JunDom1)=1,IF(AND(YEAR(JunDom1+21)=AñoCalendario,MONTH(JunDom1+21)=6),JunDom1+21,\"\"),IF(AND(YEAR(JunDom1+28)=AñoCalendario,MONTH(JunDom1+28)=6),JunDom1+28,\"\"))","v":"2021-06-27"},null,{"$f":"IF(DAY(JulDom1)=1,IF(AND(YEAR(JulDom1+15)=AñoCalendario,MONTH(JulDom1+15)=7),JulDom1+15,\"\"),IF(AND(YEAR(JulDom1+22)=AñoCalendario,MONTH(JulDom1+22)=7),JulDom1+22,\"\"))","v":"2021-07-19"},{"$f":"IF(DAY(JulDom1)=1,IF(AND(YEAR(JulDom1+16)=AñoCalendario,MONTH(JulDom1+16)=7),JulDom1+16,\"\"),IF(AND(YEAR(JulDom1+23)=AñoCalendario,MONTH(JulDom1+23)=7),JulDom1+23,\"\"))","v":"2021-07-20"},{"$f":"IF(DAY(JulDom1)=1,IF(AND(YEAR(JulDom1+17)=AñoCalendario,MONTH(JulDom1+17)=7),JulDom1+17,\"\"),IF(AND(YEAR(JulDom1+24)=AñoCalendario,MONTH(JulDom1+24)=7),JulDom1+24,\"\"))","v":"2021-07-21"},{"$f":"IF(DAY(JulDom1)=1,IF(AND(YEAR(JulDom1+18)=AñoCalendario,MONTH(JulDom1+18)=7),JulDom1+18,\"\"),IF(AND(YEAR(JulDom1+25)=AñoCalendario,MONTH(JulDom1+25)=7),JulDom1+25,\"\"))","v":"2021-07-22"},{"$f":"IF(DAY(JulDom1)=1,IF(AND(YEAR(JulDom1+19)=AñoCalendario,MONTH(JulDom1+19)=7),JulDom1+19,\"\"),IF(AND(YEAR(JulDom1+26)=AñoCalendario,MONTH(JulDom1+26)=7),JulDom1+26,\"\"))","v":"2021-07-23"},{"$f":"IF(DAY(JulDom1)=1,IF(AND(YEAR(JulDom1+20)=AñoCalendario,MONTH(JulDom1+20)=7),JulDom1+20,\"\"),IF(AND(YEAR(JulDom1+27)=AñoCalendario,MONTH(JulDom1+27)=7),JulDom1+27,\"\"))","v":"2021-07-24"},{"$f":"IF(DAY(JulDom1)=1,IF(AND(YEAR(JulDom1+21)=AñoCalendario,MONTH(JulDom1+21)=7),JulDom1+21,\"\"),IF(AND(YEAR(JulDom1+28)=AñoCalendario,MONTH(JulDom1+28)=7),JulDom1+28,\"\"))","v":"2021-07-25"},null,{"$f":"IF(DAY(AgoDom1)=1,IF(AND(YEAR(AgoDom1+15)=AñoCalendario,MONTH(AgoDom1+15)=8),AgoDom1+15,\"\"),IF(AND(YEAR(AgoDom1+22)=AñoCalendario,MONTH(AgoDom1+22)=8),AgoDom1+22,\"\"))","v":"2021-08-16"},{"$f":"IF(DAY(AgoDom1)=1,IF(AND(YEAR(AgoDom1+16)=AñoCalendario,MONTH(AgoDom1+16)=8),AgoDom1+16,\"\"),IF(AND(YEAR(AgoDom1+23)=AñoCalendario,MONTH(AgoDom1+23)=8),AgoDom1+23,\"\"))","v":"2021-08-17"},{"$f":"IF(DAY(AgoDom1)=1,IF(AND(YEAR(AgoDom1+17)=AñoCalendario,MONTH(AgoDom1+17)=8),AgoDom1+17,\"\"),IF(AND(YEAR(AgoDom1+24)=AñoCalendario,MONTH(AgoDom1+24)=8),AgoDom1+24,\"\"))","v":"2021-08-18"},{"$f":"IF(DAY(AgoDom1)=1,IF(AND(YEAR(AgoDom1+18)=AñoCalendario,MONTH(AgoDom1+18)=8),AgoDom1+18,\"\"),IF(AND(YEAR(AgoDom1+25)=AñoCalendario,MONTH(AgoDom1+25)=8),AgoDom1+25,\"\"))","v":"2021-08-19"},{"$f":"IF(DAY(AgoDom1)=1,IF(AND(YEAR(AgoDom1+19)=AñoCalendario,MONTH(AgoDom1+19)=8),AgoDom1+19,\"\"),IF(AND(YEAR(AgoDom1+26)=AñoCalendario,MONTH(AgoDom1+26)=8),AgoDom1+26,\"\"))","v":"2021-08-20"},{"$f":"IF(DAY(AgoDom1)=1,IF(AND(YEAR(AgoDom1+20)=AñoCalendario,MONTH(AgoDom1+20)=8),AgoDom1+20,\"\"),IF(AND(YEAR(AgoDom1+27)=AñoCalendario,MONTH(AgoDom1+27)=8),AgoDom1+27,\"\"))","v":"2021-08-21"},{"$f":"IF(DAY(AgoDom1)=1,IF(AND(YEAR(AgoDom1+21)=AñoCalendario,MONTH(AgoDom1+21)=8),AgoDom1+21,\"\"),IF(AND(YEAR(AgoDom1+28)=AñoCalendario,MONTH(AgoDom1+28)=8),AgoDom1+28,\"\"))","v":"2021-08-22"}]
[null,{"$f":"IF(DAY(MayDom1)=1,IF(AND(YEAR(MayDom1+22)=AñoCalendario,MONTH(MayDom1+22)=5),MayDom1+22,\"\"),IF(AND(YEAR(MayDom1+29)=AñoCalendario,MONTH(MayDom1+29)=5),MayDom1+29,\"\"))","v":"2021-05-24"},{"$f":"IF(DAY(MayDom1)=1,IF(AND(YEAR(MayDom1+23)=AñoCalendario,MONTH(MayDom1+23)=5),MayDom1+23,\"\"),IF(AND(YEAR(MayDom1+30)=AñoCalendario,MONTH(MayDom1+30)=5),MayDom1+30,\"\"))","v":"2021-05-25"},{"$f":"IF(DAY(MayDom1)=1,IF(AND(YEAR(MayDom1+24)=AñoCalendario,MONTH(MayDom1+24)=5),MayDom1+24,\"\"),IF(AND(YEAR(MayDom1+31)=AñoCalendario,MONTH(MayDom1+31)=5),MayDom1+31,\"\"))","v":"2021-05-26"},{"$f":"IF(DAY(MayDom1)=1,IF(AND(YEAR(MayDom1+25)=AñoCalendario,MONTH(MayDom1+25)=5),MayDom1+25,\"\"),IF(AND(YEAR(MayDom1+32)=AñoCalendario,MONTH(MayDom1+32)=5),MayDom1+32,\"\"))","v":"2021-05-27"},{"$f":"IF(DAY(MayDom1)=1,IF(AND(YEAR(MayDom1+26)=AñoCalendario,MONTH(MayDom1+26)=5),MayDom1+26,\"\"),IF(AND(YEAR(MayDom1+33)=AñoCalendario,MONTH(MayDom1+33)=5),MayDom1+33,\"\"))","v":"2021-05-28"},{"$f":"IF(DAY(MayDom1)=1,IF(AND(YEAR(MayDom1+27)=AñoCalendario,MONTH(MayDom1+27)=5),MayDom1+27,\"\"),IF(AND(YEAR(MayDom1+34)=AñoCalendario,MONTH(MayDom1+34)=5),MayDom1+34,\"\"))","v":"2021-05-29"},{"$f":"IF(DAY(MayDom1)=1,IF(AND(YEAR(MayDom1+28)=AñoCalendario,MONTH(MayDom1+28)=5),MayDom1+28,\"\"),IF(AND(YEAR(MayDom1+35)=AñoCalendario,MONTH(MayDom1+35)=5),MayDom1+35,\"\"))","v":"2021-05-30"},null,{"$f":"IF(DAY(JunDom1)=1,IF(AND(YEAR(JunDom1+22)=AñoCalendario,MONTH(JunDom1+22)=6),JunDom1+22,\"\"),IF(AND(YEAR(JunDom1+29)=AñoCalendario,MONTH(JunDom1+29)=6),JunDom1+29,\"\"))","v":"2021-06-28"},{"$f":"IF(DAY(JunDom1)=1,IF(AND(YEAR(JunDom1+23)=AñoCalendario,MONTH(JunDom1+23)=6),JunDom1+23,\"\"),IF(AND(YEAR(JunDom1+30)=AñoCalendario,MONTH(JunDom1+30)=6),JunDom1+30,\"\"))","v":"2021-06-29"},{"$f":"IF(DAY(JunDom1)=1,IF(AND(YEAR(JunDom1+24)=AñoCalendario,MONTH(JunDom1+24)=6),JunDom1+24,\"\"),IF(AND(YEAR(JunDom1+31)=AñoCalendario,MONTH(JunDom1+31)=6),JunDom1+31,\"\"))","v":"2021-06-30"},{"$f":"IF(DAY(JunDom1)=1,IF(AND(YEAR(JunDom1+25)=AñoCalendario,MONTH(JunDom1+25)=6),JunDom1+25,\"\"),IF(AND(YEAR(JunDom1+32)=AñoCalendario,MONTH(JunDom1+32)=6),JunDom1+32,\"\"))","v":""},{"$f":"IF(DAY(JunDom1)=1,IF(AND(YEAR(JunDom1+26)=AñoCalendario,MONTH(JunDom1+26)=6),JunDom1+26,\"\"),IF(AND(YEAR(JunDom1+33)=AñoCalendario,MONTH(JunDom1+33)=6),JunDom1+33,\"\"))","v":""},{"$f":"IF(DAY(JunDom1)=1,IF(AND(YEAR(JunDom1+27)=AñoCalendario,MONTH(JunDom1+27)=6),JunDom1+27,\"\"),IF(AND(YEAR(JunDom1+34)=AñoCalendario,MONTH(JunDom1+34)=6),JunDom1+34,\"\"))","v":""},{"$f":"IF(DAY(JunDom1)=1,IF(AND(YEAR(JunDom1+28)=AñoCalendario,MONTH(JunDom1+28)=6),JunDom1+28,\"\"),IF(AND(YEAR(JunDom1+35)=AñoCalendario,MONTH(JunDom1+35)=6),JunDom1+35,\"\"))","v":""},null,{"$f":"IF(DAY(JulDom1)=1,IF(AND(YEAR(JulDom1+22)=AñoCalendario,MONTH(JulDom1+22)=7),JulDom1+22,\"\"),IF(AND(YEAR(JulDom1+29)=AñoCalendario,MONTH(JulDom1+29)=7),JulDom1+29,\"\"))","v":"2021-07-26"},{"$f":"IF(DAY(JulDom1)=1,IF(AND(YEAR(JulDom1+23)=AñoCalendario,MONTH(JulDom1+23)=7),JulDom1+23,\"\"),IF(AND(YEAR(JulDom1+30)=AñoCalendario,MONTH(JulDom1+30)=7),JulDom1+30,\"\"))","v":"2021-07-27"},{"$f":"IF(DAY(JulDom1)=1,IF(AND(YEAR(JulDom1+24)=AñoCalendario,MONTH(JulDom1+24)=7),JulDom1+24,\"\"),IF(AND(YEAR(JulDom1+31)=AñoCalendario,MONTH(JulDom1+31)=7),JulDom1+31,\"\"))","v":"2021-07-28"},{"$f":"IF(DAY(JulDom1)=1,IF(AND(YEAR(JulDom1+25)=AñoCalendario,MONTH(JulDom1+25)=7),JulDom1+25,\"\"),IF(AND(YEAR(JulDom1+32)=AñoCalendario,MONTH(JulDom1+32)=7),JulDom1+32,\"\"))","v":"2021-07-29"},{"$f":"IF(DAY(JulDom1)=1,IF(AND(YEAR(JulDom1+26)=AñoCalendario,MONTH(JulDom1+26)=7),JulDom1+26,\"\"),IF(AND(YEAR(JulDom1+33)=AñoCalendario,MONTH(JulDom1+33)=7),JulDom1+33,\"\"))","v":"2021-07-30"},{"$f":"IF(DAY(JulDom1)=1,IF(AND(YEAR(JulDom1+27)=AñoCalendario,MONTH(JulDom1+27)=7),JulDom1+27,\"\"),IF(AND(YEAR(JulDom1+34)=AñoCalendario,MONTH(JulDom1+34)=7),JulDom1+34,\"\"))","v":"2021-07-31"},{"$f":"IF(DAY(JulDom1)=1,IF(AND(YEAR(JulDom1+28)=AñoCalendario,MONTH(JulDom1+28)=7),JulDom1+28,\"\"),IF(AND(YEAR(JulDom1+35)=AñoCalendario,MONTH(JulDom1+35)=7),JulDom1+35,\"\"))","v":""},null,{"$f":"IF(DAY(AgoDom1)=1,IF(AND(YEAR(AgoDom1+22)=AñoCalendario,MONTH(AgoDom1+22)=8),AgoDom1+22,\"\"),IF(AND(YEAR(AgoDom1+29)=AñoCalendario,MONTH(AgoDom1+29)=8),AgoDom1+29,\"\"))","v":"2021-08-23"},{"$f":"IF(DAY(AgoDom1)=1,IF(AND(YEAR(AgoDom1+23)=AñoCalendario,MONTH(AgoDom1+23)=8),AgoDom1+23,\"\"),IF(AND(YEAR(AgoDom1+30)=AñoCalendario,MONTH(AgoDom1+30)=8),AgoDom1+30,\"\"))","v":"2021-08-24"},{"$f":"IF(DAY(AgoDom1)=1,IF(AND(YEAR(AgoDom1+24)=AñoCalendario,MONTH(AgoDom1+24)=8),AgoDom1+24,\"\"),IF(AND(YEAR(AgoDom1+31)=AñoCalendario,MONTH(AgoDom1+31)=8),AgoDom1+31,\"\"))","v":"2021-08-25"},{"$f":"IF(DAY(AgoDom1)=1,IF(AND(YEAR(AgoDom1+25)=AñoCalendario,MONTH(AgoDom1+25)=8),AgoDom1+25,\"\"),IF(AND(YEAR(AgoDom1+32)=AñoCalendario,MONTH(AgoDom1+32)=8),AgoDom1+32,\"\"))","v":"2021-08-26"},{"$f":"IF(DAY(AgoDom1)=1,IF(AND(YEAR(AgoDom1+26)=AñoCalendario,MONTH(AgoDom1+26)=8),AgoDom1+26,\"\"),IF(AND(YEAR(AgoDom1+33)=AñoCalendario,MONTH(AgoDom1+33)=8),AgoDom1+33,\"\"))","v":"2021-08-27"},{"$f":"IF(DAY(AgoDom1)=1,IF(AND(YEAR(AgoDom1+27)=AñoCalendario,MONTH(AgoDom1+27)=8),AgoDom1+27,\"\"),IF(AND(YEAR(AgoDom1+34)=AñoCalendario,MONTH(AgoDom1+34)=8),AgoDom1+34,\"\"))","v":"2021-08-28"},{"$f":"IF(DAY(AgoDom1)=1,IF(AND(YEAR(AgoDom1+28)=AñoCalendario,MONTH(AgoDom1+28)=8),AgoDom1+28,\"\"),IF(AND(YEAR(AgoDom1+35)=AñoCalendario,MONTH(AgoDom1+35)=8),AgoDom1+35,\"\"))","v":"2021-08-29"}]
[null,{"$f":"IF(DAY(MayDom1)=1,IF(AND(YEAR(MayDom1+29)=AñoCalendario,MONTH(MayDom1+29)=5),MayDom1+29,\"\"),IF(AND(YEAR(MayDom1+36)=AñoCalendario,MONTH(MayDom1+36)=5),MayDom1+36,\"\"))","v":"2021-05-31"},{"$f":"IF(DAY(MayDom1)=1,IF(AND(YEAR(MayDom1+30)=AñoCalendario,MONTH(MayDom1+30)=5),MayDom1+30,\"\"),IF(AND(YEAR(MayDom1+37)=AñoCalendario,MONTH(MayDom1+37)=5),MayDom1+37,\"\"))","v":""},{"$f":"IF(DAY(MayDom1)=1,IF(AND(YEAR(MayDom1+31)=AñoCalendario,MONTH(MayDom1+31)=5),MayDom1+31,\"\"),IF(AND(YEAR(MayDom1+38)=AñoCalendario,MONTH(MayDom1+38)=5),MayDom1+38,\"\"))","v":""},{"$f":"IF(DAY(MayDom1)=1,IF(AND(YEAR(MayDom1+32)=AñoCalendario,MONTH(MayDom1+32)=5),MayDom1+32,\"\"),IF(AND(YEAR(MayDom1+39)=AñoCalendario,MONTH(MayDom1+39)=5),MayDom1+39,\"\"))","v":""},{"$f":"IF(DAY(MayDom1)=1,IF(AND(YEAR(MayDom1+33)=AñoCalendario,MONTH(MayDom1+33)=5),MayDom1+33,\"\"),IF(AND(YEAR(MayDom1+40)=AñoCalendario,MONTH(MayDom1+40)=5),MayDom1+40,\"\"))","v":""},{"$f":"IF(DAY(MayDom1)=1,IF(AND(YEAR(MayDom1+34)=AñoCalendario,MONTH(MayDom1+34)=5),MayDom1+34,\"\"),IF(AND(YEAR(MayDom1+41)=AñoCalendario,MONTH(MayDom1+41)=5),MayDom1+41,\"\"))","v":""},{"$f":"IF(DAY(MayDom1)=1,IF(AND(YEAR(MayDom1+35)=AñoCalendario,MONTH(MayDom1+35)=5),MayDom1+35,\"\"),IF(AND(YEAR(MayDom1+42)=AñoCalendario,MONTH(MayDom1+42)=5),MayDom1+42,\"\"))","v":""},null,{"$f":"IF(DAY(JunDom1)=1,IF(AND(YEAR(JunDom1+29)=AñoCalendario,MONTH(JunDom1+29)=6),JunDom1+29,\"\"),IF(AND(YEAR(JunDom1+36)=AñoCalendario,MONTH(JunDom1+36)=6),JunDom1+36,\"\"))","v":""},{"$f":"IF(DAY(JunDom1)=1,IF(AND(YEAR(JunDom1+30)=AñoCalendario,MONTH(JunDom1+30)=6),JunDom1+30,\"\"),IF(AND(YEAR(JunDom1+37)=AñoCalendario,MONTH(JunDom1+37)=6),JunDom1+37,\"\"))","v":""},{"$f":"IF(DAY(JunDom1)=1,IF(AND(YEAR(JunDom1+31)=AñoCalendario,MONTH(JunDom1+31)=6),JunDom1+31,\"\"),IF(AND(YEAR(JunDom1+38)=AñoCalendario,MONTH(JunDom1+38)=6),JunDom1+38,\"\"))","v":""},{"$f":"IF(DAY(JunDom1)=1,IF(AND(YEAR(JunDom1+32)=AñoCalendario,MONTH(JunDom1+32)=6),JunDom1+32,\"\"),IF(AND(YEAR(JunDom1+39)=AñoCalendario,MONTH(JunDom1+39)=6),JunDom1+39,\"\"))","v":""},{"$f":"IF(DAY(JunDom1)=1,IF(AND(YEAR(JunDom1+33)=AñoCalendario,MONTH(JunDom1+33)=6),JunDom1+33,\"\"),IF(AND(YEAR(JunDom1+40)=AñoCalendario,MONTH(JunDom1+40)=6),JunDom1+40,\"\"))","v":""},{"$f":"IF(DAY(JunDom1)=1,IF(AND(YEAR(JunDom1+34)=AñoCalendario,MONTH(JunDom1+34)=6),JunDom1+34,\"\"),IF(AND(YEAR(JunDom1+41)=AñoCalendario,MONTH(JunDom1+41)=6),JunDom1+41,\"\"))","v":""},{"$f":"IF(DAY(JunDom1)=1,IF(AND(YEAR(JunDom1+35)=AñoCalendario,MONTH(JunDom1+35)=6),JunDom1+35,\"\"),IF(AND(YEAR(JunDom1+42)=AñoCalendario,MONTH(JunDom1+42)=6),JunDom1+42,\"\"))","v":""},null,{"$f":"IF(DAY(JulDom1)=1,IF(AND(YEAR(JulDom1+29)=AñoCalendario,MONTH(JulDom1+29)=7),JulDom1+29,\"\"),IF(AND(YEAR(JulDom1+36)=AñoCalendario,MONTH(JulDom1+36)=7),JulDom1+36,\"\"))","v":""},{"$f":"IF(DAY(JulDom1)=1,IF(AND(YEAR(JulDom1+30)=AñoCalendario,MONTH(JulDom1+30)=7),JulDom1+30,\"\"),IF(AND(YEAR(JulDom1+37)=AñoCalendario,MONTH(JulDom1+37)=7),JulDom1+37,\"\"))","v":""},{"$f":"IF(DAY(JulDom1)=1,IF(AND(YEAR(JulDom1+31)=AñoCalendario,MONTH(JulDom1+31)=7),JulDom1+31,\"\"),IF(AND(YEAR(JulDom1+38)=AñoCalendario,MONTH(JulDom1+38)=7),JulDom1+38,\"\"))","v":""},{"$f":"IF(DAY(JulDom1)=1,IF(AND(YEAR(JulDom1+32)=AñoCalendario,MONTH(JulDom1+32)=7),JulDom1+32,\"\"),IF(AND(YEAR(JulDom1+39)=AñoCalendario,MONTH(JulDom1+39)=7),JulDom1+39,\"\"))","v":""},{"$f":"IF(DAY(JulDom1)=1,IF(AND(YEAR(JulDom1+33)=AñoCalendario,MONTH(JulDom1+33)=7),JulDom1+33,\"\"),IF(AND(YEAR(JulDom1+40)=AñoCalendario,MONTH(JulDom1+40)=7),JulDom1+40,\"\"))","v":""},{"$f":"IF(DAY(JulDom1)=1,IF(AND(YEAR(JulDom1+34)=AñoCalendario,MONTH(JulDom1+34)=7),JulDom1+34,\"\"),IF(AND(YEAR(JulDom1+41)=AñoCalendario,MONTH(JulDom1+41)=7),JulDom1+41,\"\"))","v":""},{"$f":"IF(DAY(JulDom1)=1,IF(AND(YEAR(JulDom1+35)=AñoCalendario,MONTH(JulDom1+35)=7),JulDom1+35,\"\"),IF(AND(YEAR(JulDom1+42)=AñoCalendario,MONTH(JulDom1+42)=7),JulDom1+42,\"\"))","v":""},null,{"$f":"IF(DAY(AgoDom1)=1,IF(AND(YEAR(AgoDom1+29)=AñoCalendario,MONTH(AgoDom1+29)=8),AgoDom1+29,\"\"),IF(AND(YEAR(AgoDom1+36)=AñoCalendario,MONTH(AgoDom1+36)=8),AgoDom1+36,\"\"))","v":"2021-08-30"},{"$f":"IF(DAY(AgoDom1)=1,IF(AND(YEAR(AgoDom1+30)=AñoCalendario,MONTH(AgoDom1+30)=8),AgoDom1+30,\"\"),IF(AND(YEAR(AgoDom1+37)=AñoCalendario,MONTH(AgoDom1+37)=8),AgoDom1+37,\"\"))","v":"2021-08-31"},{"$f":"IF(DAY(AgoDom1)=1,IF(AND(YEAR(AgoDom1+31)=AñoCalendario,MONTH(AgoDom1+31)=8),AgoDom1+31,\"\"),IF(AND(YEAR(AgoDom1+38)=AñoCalendario,MONTH(AgoDom1+38)=8),AgoDom1+38,\"\"))","v":""},{"$f":"IF(DAY(AgoDom1)=1,IF(AND(YEAR(AgoDom1+32)=AñoCalendario,MONTH(AgoDom1+32)=8),AgoDom1+32,\"\"),IF(AND(YEAR(AgoDom1+39)=AñoCalendario,MONTH(AgoDom1+39)=8),AgoDom1+39,\"\"))","v":""},{"$f":"IF(DAY(AgoDom1)=1,IF(AND(YEAR(AgoDom1+33)=AñoCalendario,MONTH(AgoDom1+33)=8),AgoDom1+33,\"\"),IF(AND(YEAR(AgoDom1+40)=AñoCalendario,MONTH(AgoDom1+40)=8),AgoDom1+40,\"\"))","v":""},{"$f":"IF(DAY(AgoDom1)=1,IF(AND(YEAR(AgoDom1+34)=AñoCalendario,MONTH(AgoDom1+34)=8),AgoDom1+34,\"\"),IF(AND(YEAR(AgoDom1+41)=AñoCalendario,MONTH(AgoDom1+41)=8),AgoDom1+41,\"\"))","v":""},{"$f":"IF(DAY(AgoDom1)=1,IF(AND(YEAR(AgoDom1+35)=AñoCalendario,MONTH(AgoDom1+35)=8),AgoDom1+35,\"\"),IF(AND(YEAR(AgoDom1+42)=AñoCalendario,MONTH(AgoDom1+42)=8),AgoDom1+42,\"\"))","v":""}]
[]
[null,"Septiembre",{"$nulls":7},"Octubre",{"$nulls":7},"Noviembre",{"$nulls":7},"Diciembre"]
[null,"Lu","Ma","Mi","Ju","Vi","Sa","Do",null,"Lu","Ma","Mi","Ju","Vi","Sa","Do",null,"Lu","Ma","Mi","Ju","Vi","Sa","Do",null,"Lu","Ma","Mi","Ju","Vi","Sa","Do"]
[null,{"$f":"IF(DAY(SepDom1)=1,\"\",IF(AND(YEAR(SepDom1+1)=AñoCalendario,MONTH(SepDom1+1)=9),SepDom1+1,\"\"))","v":""},{"$f":"IF(DAY(SepDom1)=1,\"\",IF(AND(YEAR(SepDom1+2)=AñoCalendario,MONTH(SepDom1+2)=9),SepDom1+2,\"\"))","v":""},{"$f":"IF(DAY(SepDom1)=1,\"\",IF(AND(YEAR(SepDom1+3)=AñoCalendario,MONTH(SepDom1+3)=9),SepDom1+3,\"\"))","v":"2021-09-01"},{"$f":"IF(DAY(SepDom1)=1,\"\",IF(AND(YEAR(SepDom1+4)=AñoCalendario,MONTH(SepDom1+4)=9),SepDom1+4,\"\"))","v":"2021-09-02"},{"$f":"IF(DAY(SepDom1)=1,\"\",IF(AND(YEAR(SepDom1+5)=AñoCalendario,MONTH(SepDom1+5)=9),SepDom1+5,\"\"))","v":"2021-09-03"},{"$f":"IF(DAY(SepDom1)=1,\"\",IF(AND(YEAR(SepDom1+6)=AñoCalendario,MONTH(SepDom1+6)=9),SepDom1+6,\"\"))","v":"2021-09-04"},{"$f":"IF(DAY(SepDom1)=1,IF(AND(YEAR(SepDom1)=AñoCalendario,MONTH(SepDom1)=9),SepDom1,\"\"),IF(AND(YEAR(SepDom1+7)=AñoCalendario,MONTH(SepDom1+7)=9),SepDom1+7,\"\"))","v":"2021-09-05"},null,{"$f":"IF(DAY(OctDom1)=1,\"\",IF(AND(YEAR(OctDom1+1)=AñoCalendario,MONTH(OctDom1+1)=10),OctDom1+1,\"\"))","v":""},{"$f":"IF(DAY(OctDom1)=1,\"\",IF(AND(YEAR(OctDom1+2)=AñoCalendario,MONTH(OctDom1+2)=10),OctDom1+2,\"\"))","v":""},{"$f":"IF(DAY(OctDom1)=1,\"\",IF(AND(YEAR(OctDom1+3)=AñoCalendario,MONTH(OctDom1+3)=10),OctDom1+3,\"\"))","v":""},{"$f":"IF(DAY(OctDom1)=1,\"\",IF(AND(YEAR(OctDom1+4)=AñoCalendario,MONTH(OctDom1+4)=10),OctDom1+4,\"\"))","v":""},{"$f":"IF(DAY(OctDom1)=1,\"\",IF(AND(YEAR(OctDom1+5)=AñoCalendario,MONTH(OctDom1+5)=10),OctDom1+5,\"\"))","v":"2021-10-01"},{"$f":"IF(DAY(OctDom1)=1,\"\",IF(AND(YEAR(OctDom1+6)=AñoCalendario,MONTH(OctDom1+6)=10),OctDom1+6,\"\"))","v":"2021-10-02"},{"$f":"IF(DAY(OctDom1)=1,IF(AND(YEAR(OctDom1)=AñoCalendario,MONTH(OctDom1)=10),OctDom1,\"\"),IF(AND(YEAR(OctDom1+7)=AñoCalendario,MONTH(OctDom1+7)=10),OctDom1+7,\"\"))","v":"2021-10-03"},null,{"$f":"IF(DAY(NovDom1)=1,\"\",IF(AND(YEAR(NovDom1+1)=AñoCalendario,MONTH(NovDom1+1)=11),NovDom1+1,\"\"))","v":"2021-11-01"},{"$f":"IF(DAY(NovDom1)=1,\"\",IF(AND(YEAR(NovDom1+2)=AñoCalendario,MONTH(NovDom1+2)=11),NovDom1+2,\"\"))","v":"2021-11-02"},{"$f":"IF(DAY(NovDom1)=1,\"\",IF(AND(YEAR(NovDom1+3)=AñoCalendario,MONTH(NovDom1+3)=11),NovDom1+3,\"\"))","v":"2021-11-03"},{"$f":"IF(DAY(NovDom1)=1,\"\",IF(AND(YEAR(NovDom1+4)=AñoCalendario,MONTH(NovDom1+4)=11),NovDom1+4,\"\"))","v":"2021-11-04"},{"$f":"IF(DAY(NovDom1)=1,\"\",IF(AND(YEAR(NovDom1+5)=AñoCalendario,MONTH(NovDom1+5)=11),NovDom1+5,\"\"))","v":"2021-11-05"},{"$f":"IF(DAY(NovDom1)=1,\"\",IF(AND(YEAR(NovDom1+6)=AñoCalendario,MONTH(NovDom1+6)=11),NovDom1+6,\"\"))","v":"2021-11-06"},{"$f":"IF(DAY(NovDom1)=1,IF(AND(YEAR(NovDom1)=AñoCalendario,MONTH(NovDom1)=11),NovDom1,\"\"),IF(AND(YEAR(NovDom1+7)=AñoCalendario,MONTH(NovDom1+7)=11),NovDom1+7,\"\"))","v":"2021-11-07"},null,{"$f":"IF(DAY(DicDom1)=1,\"\",IF(AND(YEAR(DicDom1+1)=AñoCalendario,MONTH(DicDom1+1)=12),DicDom1+1,\"\"))","v":""},{"$f":"IF(DAY(DicDom1)=1,\"\",IF(AND(YEAR(DicDom1+2)=AñoCalendario,MONTH(DicDom1+2)=12),DicDom1+2,\"\"))","v":""},{"$f":"IF(DAY(DicDom1)=1,\"\",IF(AND(YEAR(DicDom1+3)=AñoCalendario,MONTH(DicDom1+3)=12),DicDom1+3,\"\"))","v":"2021-12-01"},{"$f":"IF(DAY(DicDom1)=1,\"\",IF(AND(YEAR(DicDom1+4)=AñoCalendario,MONTH(DicDom1+4)=12),DicDom1+4,\"\"))","v":"2021-12-02"},{"$f":"IF(DAY(DicDom1)=1,\"\",IF(AND(YEAR(DicDom1+5)=AñoCalendario,MONTH(DicDom1+5)=12),DicDom1+5,\"\"))","v":"2021-12-03"},{"$f":"IF(DAY(DicDom1)=1,\"\",IF(AND(YEAR(DicDom1+6)=AñoCalendario,MONTH(DicDom1+6)=12),DicDom1+6,\"\"))","v":"2021-12-04"},{"$f":"IF(DAY(DicDom1)=1,IF(AND(YEAR(DicDom1)=AñoCalendario,MONTH(DicDom1)=12),DicDom1,\"\"),IF(AND(YEAR(DicDom1+7)=AñoCalendario,MONTH(DicDom1+7)=12),DicDom1+7,\"\"))","v":"2021-12-05"}]
[null,{"$f":"IF(DAY(SepDom1)=1,IF(AND(YEAR(SepDom1+1)=AñoCalendario,MONTH(SepDom1+1)=9),SepDom1+1,\"\"),IF(AND(YEAR(SepDom1+8)=AñoCalendario,MONTH(SepDom1+8)=9),SepDom1+8,\"\"))","v":"2021-09-06"},{"$f":"IF(DAY(SepDom1)=1,IF(AND(YEAR(SepDom1+2)=AñoCalendario,MONTH(SepDom1+2)=9),SepDom1+2,\"\"),IF(AND(YEAR(SepDom1+9)=AñoCalendario,MONTH(SepDom1+9)=9),SepDom1+9,\"\"))","v":"2021-09-07"},{"$f":"IF(DAY(SepDom1)=1,IF(AND(YEAR(SepDom1+3)=AñoCalendario,MONTH(SepDom1+3)=9),SepDom1+3,\"\"),IF(AND(YEAR(SepDom1+10)=AñoCalendario,MONTH(SepDom1+10)=9),SepDom1+10,\"\"))","v":"2021-09-08"},{"$f":"IF(DAY(SepDom1)=1,IF(AND(YEAR(SepDom1+4)=AñoCalendario,MONTH(SepDom1+4)=9),SepDom1+4,\"\"),IF(AND(YEAR(SepDom1+11)=AñoCalendario,MONTH(SepDom1+11)=9),SepDom1+11,\"\"))","v":"2021-09-09"},{"$f":"IF(DAY(SepDom1)=1,IF(AND(YEAR(SepDom1+5)=AñoCalendario,MONTH(SepDom1+5)=9),SepDom1+5,\"\"),IF(AND(YEAR(SepDom1+12)=AñoCalendario,MONTH(SepDom1+12)=9),SepDom1+12,\"\"))","v":"2021-09-10"},{"$f":"IF(DAY(SepDom1)=1,IF(AND(YEAR(SepDom1+6)=AñoCalendario,MONTH(SepDom1+6)=9),SepDom1+6,\"\"),IF(AND(YEAR(SepDom1+13)=AñoCalendario,MONTH(SepDom1+13)=9),SepDom1+13,\"\"))","v":"2021-09-11"},{"$f":"IF(DAY(SepDom1)=1,IF(AND(YEAR(SepDom1+7)=AñoCalendario,MONTH(SepDom1+7)=9),SepDom1+7,\"\"),IF(AND(YEAR(SepDom1+14)=AñoCalendario,MONTH(SepDom1+14)=9),SepDom1+14,\"\"))","v":"2021-09-12"},null,{"$f":"IF(DAY(OctDom1)=1,IF(AND(YEAR(OctDom1+1)=AñoCalendario,MONTH(OctDom1+1)=10),OctDom1+1,\"\"),IF(AND(YEAR(OctDom1+8)=AñoCalendario,MONTH(OctDom1+8)=10),OctDom1+8,\"\"))","v":"2021-10-04"},{"$f":"IF(DAY(OctDom1)=1,IF(AND(YEAR(OctDom1+2)=AñoCalendario,MONTH(OctDom1+2)=10),OctDom1+2,\"\"),IF(AND(YEAR(OctDom1+9)=AñoCalendario,MONTH(OctDom1+9)=10),OctDom1+9,\"\"))","v":"2021-10-05"},{"$f":"IF(DAY(OctDom1)=1,IF(AND(YEAR(OctDom1+3)=AñoCalendario,MONTH(OctDom1+3)=10),OctDom1+3,\"\"),IF(AND(YEAR(OctDom1+10)=AñoCalendario,MONTH(OctDom1+10)=10),OctDom1+10,\"\"))","v":"2021-10-06"},{"$f":"IF(DAY(OctDom1)=1,IF(AND(YEAR(OctDom1+4)=AñoCalendario,MONTH(OctDom1+4)=10),OctDom1+4,\"\"),IF(AND(YEAR(OctDom1+11)=AñoCalendario,MONTH(OctDom1+11)=10),OctDom1+11,\"\"))","v":"2021-10-07"},{"$f":"IF(DAY(OctDom1)=1,IF(AND(YEAR(OctDom1+5)=AñoCalendario,MONTH(OctDom1+5)=10),OctDom1+5,\"\"),IF(AND(YEAR(OctDom1+12)=AñoCalendario,MONTH(OctDom1+12)=10),OctDom1+12,\"\"))","v":"2021-10-08"},{"$f":"IF(DAY(OctDom1)=1,IF(AND(YEAR(OctDom1+6)=AñoCalendario,MONTH(OctDom1+6)=10),OctDom1+6,\"\"),IF(AND(YEAR(OctDom1+13)=AñoCalendario,MONTH(OctDom1+13)=10),OctDom1+13,\"\"))","v":"2021-10-09"},{"$f":"IF(DAY(OctDom1)=1,IF(AND(YEAR(OctDom1+7)=AñoCalendario,MONTH(OctDom1+7)=10),OctDom1+7,\"\"),IF(AND(YEAR(OctDom1+14)=AñoCalendario,MONTH(OctDom1+14)=10),OctDom1+14,\"\"))","v":"2021-10-10"},null,{"$f":"IF(DAY(NovDom1)=1,IF(AND(YEAR(NovDom1+1)=AñoCalendario,MONTH(NovDom1+1)=11),NovDom1+1,\"\"),IF(AND(YEAR(NovDom1+8)=AñoCalendario,MONTH(NovDom1+8)=11),NovDom1+8,\"\"))","v":"2021-11-08"},{"$f":"IF(DAY(NovDom1)=1,IF(AND(YEAR(NovDom1+2)=AñoCalendario,MONTH(NovDom1+2)=11),NovDom1+2,\"\"),IF(AND(YEAR(NovDom1+9)=AñoCalendario,MONTH(NovDom1+9)=11),NovDom1+9,\"\"))","v":"2021-11-09"},{"$f":"IF(DAY(NovDom1)=1,IF(AND(YEAR(NovDom1+3)=AñoCalendario,MONTH(NovDom1+3)=11),NovDom1+3,\"\"),IF(AND(YEAR(NovDom1+10)=AñoCalendario,MONTH(NovDom1+10)=11),NovDom1+10,\"\"))","v":"2021-11-10"},{"$f":"IF(DAY(NovDom1)=1,IF(AND(YEAR(NovDom1+4)=AñoCalendario,MONTH(NovDom1+4)=11),NovDom1+4,\"\"),IF(AND(YEAR(NovDom1+11)=AñoCalendario,MONTH(NovDom1+11)=11),NovDom1+11,\"\"))","v":"2021-11-11"},{"$f":"IF(DAY(NovDom1)=1,IF(AND(YEAR(NovDom1+5)=AñoCalendario,MONTH(NovDom1+5)=11),NovDom1+5,\"\"),IF(AND(YEAR(NovDom1+12)=AñoCalendario,MONTH(NovDom1+12)=11),NovDom1+12,\"\"))","v":"2021-11-12"},{"$f":"IF(DAY(NovDom1)=1,IF(AND(YEAR(NovDom1+6)=AñoCalendario,MONTH(NovDom1+6)=11),NovDom1+6,\"\"),IF(AND(YEAR(NovDom1+13)=AñoCalendario,MONTH(NovDom1+13)=11),NovDom1+13,\"\"))","v":"2021-11-13"},{"$f":"IF(DAY(NovDom1)=1,IF(AND(YEAR(NovDom1+7)=AñoCalendario,MONTH(NovDom1+7)=11),NovDom1+7,\"\"),IF(AND(YEAR(NovDom1+14)=AñoCalendario,MONTH(NovDom1+14)=11),NovDom1+14,\"\"))","v":"2021-11-14"},null,{"$f":"IF(DAY(DicDom1)=1,IF(AND(YEAR(DicDom1+1)=AñoCalendario,MONTH(DicDom1+1)=12),DicDom1+1,\"\"),IF(AND(YEAR(DicDom1+8)=AñoCalendario,MONTH(DicDom1+8)=12),DicDom1+8,\"\"))","v":"2021-12-06"},{"$f":"IF(DAY(DicDom1)=1,IF(AND(YEAR(DicDom1+2)=AñoCalendario,MONTH(DicDom1+2)=12),DicDom1+2,\"\"),IF(AND(YEAR(DicDom1+9)=AñoCalendario,MONTH(DicDom1+9)=12),DicDom1+9,\"\"))","v":"2021-12-07"},{"$f":"IF(DAY(DicDom1)=1,IF(AND(YEAR(DicDom1+3)=AñoCalendario,MONTH(DicDom1+3)=12),DicDom1+3,\"\"),IF(AND(YEAR(DicDom1+10)=AñoCalendario,MONTH(DicDom1+10)=12),DicDom1+10,\"\"))","v":"2021-12-08"},{"$f":"IF(DAY(DicDom1)=1,IF(AND(YEAR(DicDom1+4)=AñoCalendario,MONTH(DicDom1+4)=12),DicDom1+4,\"\"),IF(AND(YEAR(DicDom1+11)=AñoCalendario,MONTH(DicDom1+11)=12),DicDom1+11,\"\"))","v":"2021-12-09"},{"$f":"IF(DAY(DicDom1)=1,IF(AND(YEAR(DicDom1+5)=AñoCalendario,MONTH(DicDom1+5)=12),DicDom1+5,\"\"),IF(AND(YEAR(DicDom1+12)=AñoCalendario,MONTH(DicDom1+12)=12),DicDom1+12,\"\"))","v":"2021-12-10"},{"$f":"IF(DAY(DicDom1)=1,IF(AND(YEAR(DicDom1+6)=AñoCalendario,MONTH(DicDom1+6)=12),DicDom1+6,\"\"),IF(AND(YEAR(DicDom1+13)=AñoCalendario,MONTH(DicDom1+13)=12),DicDom1+13,\"\"))","v":"2021-12-11"},{"$f":"IF(DAY(DicDom1)=1,IF(AND(YEAR(DicDom1+7)=AñoCalendario,MONTH(DicDom1+7)=12),DicDom1+7,\"\"),IF(AND(YEAR(DicDom1+14)=AñoCalendario,MONTH(DicDom1+14)=12),DicDom1+14,\"\"))","v":"2021-12-12"}]
[null,{"$f":"IF(DAY(SepDom1)=1,IF(AND(YEAR(SepDom1+8)=AñoCalendario,MONTH(SepDom1+8)=9),SepDom1+8,\"\"),IF(AND(YEAR(SepDom1+15)=AñoCalendario,MONTH(SepDom1+15)=9),SepDom1+15,\"\"))","v":"2021-09-13"},{"$f":"IF(DAY(SepDom1)=1,IF(AND(YEAR(SepDom1+9)=AñoCalendario,MONTH(SepDom1+9)=9),SepDom1+9,\"\"),IF(AND(YEAR(SepDom1+16)=AñoCalendario,MONTH(SepDom1+16)=9),SepDom1+16,\"\"))","v":"2021-09-14"},{"$f":"IF(DAY(SepDom1)=1,IF(AND(YEAR(SepDom1+10)=AñoCalendario,MONTH(SepDom1+10)=9),SepDom1+10,\"\"),IF(AND(YEAR(SepDom1+17)=AñoCalendario,MONTH(SepDom1+17)=9),SepDom1+17,\"\"))","v":"2021-09-15"},{"$f":"IF(DAY(SepDom1)=1,IF(AND(YEAR(SepDom1+11)=AñoCalendario,MONTH(SepDom1+11)=9),SepDom1+11,\"\"),IF(AND(YEAR(SepDom1+18)=AñoCalendario,MONTH(SepDom1+18)=9),SepDom1+18,\"\"))","v":"2021-09-16"},{"$f":"IF(DAY(SepDom1)=1,IF(AND(YEAR(SepDom1+12)=AñoCalendario,MONTH(SepDom1+12)=9),SepDom1+12,\"\"),IF(AND(YEAR(SepDom1+19)=AñoCalendario,MONTH(SepDom1+19)=9),SepDom1+19,\"\"))","v":"2021-09-17"},{"$f":"IF(DAY(SepDom1)=1,IF(AND(YEAR(SepDom1+13)=AñoCalendario,MONTH(SepDom1+13)=9),SepDom1+13,\"\"),IF(AND(YEAR(SepDom1+20)=AñoCalendario,MONTH(SepDom1+20)=9),SepDom1+20,\"\"))","v":"2021-09-18"},{"$f":"IF(DAY(SepDom1)=1,IF(AND(YEAR(SepDom1+14)=AñoCalendario,MONTH(SepDom1+14)=9),SepDom1+14,\"\"),IF(AND(YEAR(SepDom1+21)=AñoCalendario,MONTH(SepDom1+21)=9),SepDom1+21,\"\"))","v":"2021-09-19"},null,{"$f":"IF(DAY(OctDom1)=1,IF(AND(YEAR(OctDom1+8)=AñoCalendario,MONTH(OctDom1+8)=10),OctDom1+8,\"\"),IF(AND(YEAR(OctDom1+15)=AñoCalendario,MONTH(OctDom1+15)=10),OctDom1+15,\"\"))","v":"2021-10-11"},{"$f":"IF(DAY(OctDom1)=1,IF(AND(YEAR(OctDom1+9)=AñoCalendario,MONTH(OctDom1+9)=10),OctDom1+9,\"\"),IF(AND(YEAR(OctDom1+16)=AñoCalendario,MONTH(OctDom1+16)=10),OctDom1+16,\"\"))","v":"2021-10-12"},{"$f":"IF(DAY(OctDom1)=1,IF(AND(YEAR(OctDom1+10)=AñoCalendario,MONTH(OctDom1+10)=10),OctDom1+10,\"\"),IF(AND(YEAR(OctDom1+17)=AñoCalendario,MONTH(OctDom1+17)=10),OctDom1+17,\"\"))","v":"2021-10-13"},{"$f":"IF(DAY(OctDom1)=1,IF(AND(YEAR(OctDom1+11)=AñoCalendario,MONTH(OctDom1+11)=10),OctDom1+11,\"\"),IF(AND(YEAR(OctDom1+18)=AñoCalendario,MONTH(OctDom1+18)=10),OctDom1+18,\"\"))","v":"2021-10-14"},{"$f":"IF(DAY(OctDom1)=1,IF(AND(YEAR(OctDom1+12)=AñoCalendario,MONTH(OctDom1+12)=10),OctDom1+12,\"\"),IF(AND(YEAR(OctDom1+19)=AñoCalendario,MONTH(OctDom1+19)=10),OctDom1+19,\"\"))","v":"2021-10-15"},{"$f":"IF(DAY(OctDom1)=1,IF(AND(YEAR(OctDom1+13)=AñoCalendario,MONTH(OctDom1+13)=10),OctDom1+13,\"\"),IF(AND(YEAR(OctDom1+20)=AñoCalendario,MONTH(OctDom1+20)=10),OctDom1+20,\"\"))","v":"2021-10-16"},{"$f":"IF(DAY(OctDom1)=1,IF(AND(YEAR(OctDom1+14)=AñoCalendario,MONTH(OctDom1+14)=10),OctDom1+14,\"\"),IF(AND(YEAR(OctDom1+21)=AñoCalendario,MONTH(OctDom1+21)=10),OctDom1+21,\"\"))","v":"2021-10-17"},null,{"$f":"IF(DAY(NovDom1)=1,IF(AND(YEAR(NovDom1+8)=AñoCalendario,MONTH(NovDom1+8)=11),NovDom1+8,\"\"),IF(AND(YEAR(NovDom1+15)=AñoCalendario,MONTH(NovDom1+15)=11),NovDom1+15,\"\"))","v":"2021-11-15"},{"$f":"IF(DAY(NovDom1)=1,IF(AND(YEAR(NovDom1+9)=AñoCalendario,MONTH(NovDom1+9)=11),NovDom1+9,\"\"),IF(AND(YEAR(NovDom1+16)=AñoCalendario,MONTH(NovDom1+16)=11),NovDom1+16,\"\"))","v":"2021-11-16"},{"$f":"IF(DAY(NovDom1)=1,IF(AND(YEAR(NovDom1+10)=AñoCalendario,MONTH(NovDom1+10)=11),NovDom1+10,\"\"),IF(AND(YEAR(NovDom1+17)=AñoCalendario,MONTH(NovDom1+17)=11),NovDom1+17,\"\"))","v":"2021-11-17"},{"$f":"IF(DAY(NovDom1)=1,IF(AND(YEAR(NovDom1+11)=AñoCalendario,MONTH(NovDom1+11)=11),NovDom1+11,\"\"),IF(AND(YEAR(NovDom1+18)=AñoCalendario,MONTH(NovDom1+18)=11),NovDom1+18,\"\"))","v":"2021-11-18"},{"$f":"IF(DAY(NovDom1)=1,IF(AND(YEAR(NovDom1+12)=AñoCalendario,MONTH(NovDom1+12)=11),NovDom1+12,\"\"),IF(AND(YEAR(NovDom1+19)=AñoCalendario,MONTH(NovDom1+19)=11),NovDom1+19,\"\"))","v":"2021-11-19"},{"$f":"IF(DAY(NovDom1)=1,IF(AND(YEAR(NovDom1+13)=AñoCalendario,MONTH(NovDom1+13)=11),NovDom1+13,\"\"),IF(AND(YEAR(NovDom1+20)=AñoCalendario,MONTH(NovDom1+20)=11),NovDom1+20,\"\"))","v":"2021-11-20"},{"$f":"IF(DAY(NovDom1)=1,IF(AND(YEAR(NovDom1+14)=AñoCalendario,MONTH(NovDom1+14)=11),NovDom1+14,\"\"),IF(AND(YEAR(NovDom1+21)=AñoCalendario,MONTH(NovDom1+21)=11),NovDom1+21,\"\"))","v":"2021-11-21"},null,{"$f":"IF(DAY(DicDom1)=1,IF(AND(YEAR(DicDom1+8)=AñoCalendario,MONTH(DicDom1+8)=12),DicDom1+8,\"\"),IF(AND(YEAR(DicDom1+15)=AñoCalendario,MONTH(DicDom1+15)=12),DicDom1+15,\"\"))","v":"2021-12-13"},{"$f":"IF(DAY(DicDom1)=1,IF(AND(YEAR(DicDom1+9)=AñoCalendario,MONTH(DicDom1+9)=12),DicDom1+9,\"\"),IF(AND(YEAR(DicDom1+16)=AñoCalendario,MONTH(DicDom1+16)=12),DicDom1+16,\"\"))","v":"2021-12-14"},{"$f":"IF(DAY(DicDom1)=1,IF(AND(YEAR(DicDom1+10)=AñoCalendario,MONTH(DicDom1+10)=12),DicDom1+10,\"\"),IF(AND(YEAR(DicDom1+17)=AñoCalendario,MONTH(DicDom1+17)=12),DicDom1+17,\"\"))","v":"2021-12-15"},{"$f":"IF(DAY(DicDom1)=1,IF(AND(YEAR(DicDom1+11)=AñoCalendario,MONTH(DicDom1+11)=12),DicDom1+11,\"\"),IF(AND(YEAR(DicDom1+18)=AñoCalendario,MONTH(DicDom1+18)=12),DicDom1+18,\"\"))","v":"2021-12-16"},{"$f":"IF(DAY(DicDom1)=1,IF(AND(YEAR(DicDom1+12)=AñoCalendario,MONTH(DicDom1+12)=12),DicDom1+12,\"\"),IF(AND(YEAR(DicDom1+19)=AñoCalendario,MONTH(DicDom1+19)=12),DicDom1+19,\"\"))","v":"2021-12-17"},{"$f":"IF(DAY(DicDom1)=1,IF(AND(YEAR(DicDom1+13)=AñoCalendario,MONTH(DicDom1+13)=12),DicDom1+13,\"\"),IF(AND(YEAR(DicDom1+20)=AñoCalendario,MONTH(DicDom1+20)=12),DicDom1+20,\"\"))","v":"2021-12-18"},{"$f":"IF(DAY(DicDom1)=1,IF(AND(YEAR(DicDom1+14)=AñoCalendario,MONTH(DicDom1+14)=12),DicDom1+14,\"\"),IF(AND(YEAR(DicDom1+21)=AñoCalendario,MONTH(DicDom1+21)=12),DicDom1+21,\"\"))","v":"2021-12-19"}]
[null,{"$f":"IF(DAY(SepDom1)=1,IF(AND(YEAR(SepDom1+15)=AñoCalendario,MONTH(SepDom1+15)=9),SepDom1+15,\"\"),IF(AND(YEAR(SepDom1+22)=AñoCalendario,MONTH(SepDom1+22)=9),SepDom1+22,\"\"))","v":"2021-09-20"},{"$f":"IF(DAY(SepDom1)=1,IF(AND(YEAR(SepDom1+16)=AñoCalendario,MONTH(SepDom1+16)=9),SepDom1+16,\"\"),IF(AND(YEAR(SepDom1+23)=AñoCalendario,MONTH(SepDom1+23)=9),SepDom1+23,\"\"))","v":"2021-09-21"},{"$f":"IF(DAY(SepDom1)=1,IF(AND(YEAR(SepDom1+17)=AñoCalendario,MONTH(SepDom1+17)=9),SepDom1+17,\"\"),IF(AND(YEAR(SepDom1+24)=AñoCalendario,MONTH(SepDom1+24)=9),SepDom1+24,\"\"))","v":"2021-09-22"},{"$f":"IF(DAY(SepDom1)=1,IF(AND(YEAR(SepDom1+18)=AñoCalendario,MONTH(SepDom1+18)=9),SepDom1+18,\"\"),IF(AND(YEAR(SepDom1+25)=AñoCalendario,MONTH(SepDom1+25)=9),SepDom1+25,\"\"))","v":"2021-09-23"},{"$f":"IF(DAY(SepDom1)=1,IF(AND(YEAR(SepDom1+19)=AñoCalendario,MONTH(SepDom1+19)=9),SepDom1+19,\"\"),IF(AND(YEAR(SepDom1+26)=AñoCalendario,MONTH(SepDom1+26)=9),SepDom1+26,\"\"))","v":"2021-09-24"},{"$f":"IF(DAY(SepDom1)=1,IF(AND(YEAR(SepDom1+20)=AñoCalendario,MONTH(SepDom1+20)=9),SepDom1+20,\"\"),IF(AND(YEAR(SepDom1+27)=AñoCalendario,MONTH(SepDom1+27)=9),SepDom1+27,\"\"))","v":"2021-09-25"},{"$f":"IF(DAY(SepDom1)=1,IF(AND(YEAR(SepDom1+21)=AñoCalendario,MONTH(SepDom1+21)=9),SepDom1+21,\"\"),IF(AND(YEAR(SepDom1+28)=AñoCalendario,MONTH(SepDom1+28)=9),SepDom1+28,\"\"))","v":"2021-09-26"},null,{"$f":"IF(DAY(OctDom1)=1,IF(AND(YEAR(OctDom1+15)=AñoCalendario,MONTH(OctDom1+15)=10),OctDom1+15,\"\"),IF(AND(YEAR(OctDom1+22)=AñoCalendario,MONTH(OctDom1+22)=10),OctDom1+22,\"\"))","v":"2021-10-18"},{"$f":"IF(DAY(OctDom1)=1,IF(AND(YEAR(OctDom1+16)=AñoCalendario,MONTH(OctDom1+16)=10),OctDom1+16,\"\"),IF(AND(YEAR(OctDom1+23)=AñoCalendario,MONTH(OctDom1+23)=10),OctDom1+23,\"\"))","v":"2021-10-19"},{"$f":"IF(DAY(OctDom1)=1,IF(AND(YEAR(OctDom1+17)=AñoCalendario,MONTH(OctDom1+17)=10),OctDom1+17,\"\"),IF(AND(YEAR(OctDom1+24)=AñoCalendario,MONTH(OctDom1+24)=10),OctDom1+24,\"\"))","v":"2021-10-20"},{"$f":"IF(DAY(OctDom1)=1,IF(AND(YEAR(OctDom1+18)=AñoCalendario,MONTH(OctDom1+18)=10),OctDom1+18,\"\"),IF(AND(YEAR(OctDom1+25)=AñoCalendario,MONTH(OctDom1+25)=10),OctDom1+25,\"\"))","v":"2021-10-21"},{"$f":"IF(DAY(OctDom1)=1,IF(AND(YEAR(OctDom1+19)=AñoCalendario,MONTH(OctDom1+19)=10),OctDom1+19,\"\"),IF(AND(YEAR(OctDom1+26)=AñoCalendario,MONTH(OctDom1+26)=10),OctDom1+26,\"\"))","v":"2021-10-22"},{"$f":"IF(DAY(OctDom1)=1,IF(AND(YEAR(OctDom1+20)=AñoCalendario,MONTH(OctDom1+20)=10),OctDom1+20,\"\"),IF(AND(YEAR(OctDom1+27)=AñoCalendario,MONTH(OctDom1+27)=10),OctDom1+27,\"\"))","v":"2021-10-23"},{"$f":"IF(DAY(OctDom1)=1,IF(AND(YEAR(OctDom1+21)=AñoCalendario,MONTH(OctDom1+21)=10),OctDom1+21,\"\"),IF(AND(YEAR(OctDom1+28)=AñoCalendario,MONTH(OctDom1+28)=10),OctDom1+28,\"\"))","v":"2021-10-24"},null,{"$f":"IF(DAY(NovDom1)=1,IF(AND(YEAR(NovDom1+15)=AñoCalendario,MONTH(NovDom1+15)=11),NovDom1+15,\"\"),IF(AND(YEAR(NovDom1+22)=AñoCalendario,MONTH(NovDom1+22)=11),NovDom1+22,\"\"))","v":"2021-11-22"},{"$f":"IF(DAY(NovDom1)=1,IF(AND(YEAR(NovDom1+16)=AñoCalendario,MONTH(NovDom1+16)=11),NovDom1+16,\"\"),IF(AND(YEAR(NovDom1+23)=AñoCalendario,MONTH(NovDom1+23)=11),NovDom1+23,\"\"))","v":"2021-11-23"},{"$f":"IF(DAY(NovDom1)=1,IF(AND(YEAR(NovDom1+17)=AñoCalendario,MONTH(NovDom1+17)=11),NovDom1+17,\"\"),IF(AND(YEAR(NovDom1+24)=AñoCalendario,MONTH(NovDom1+24)=11),NovDom1+24,\"\"))","v":"2021-11-24"},{"$f":"IF(DAY(NovDom1)=1,IF(AND(YEAR(NovDom1+18)=AñoCalendario,MONTH(NovDom1+18)=11),NovDom1+18,\"\"),IF(AND(YEAR(NovDom1+25)=AñoCalendario,MONTH(NovDom1+25)=11),NovDom1+25,\"\"))","v":"2021-11-25"},{"$f":"IF(DAY(NovDom1)=1,IF(AND(YEAR(NovDom1+19)=AñoCalendario,MONTH(NovDom1+19)=11),NovDom1+19,\"\"),IF(AND(YEAR(NovDom1+26)=AñoCalendario,MONTH(NovDom1+26)=11),NovDom1+26,\"\"))","v":"2021-11-26"},{"$f":"IF(DAY(NovDom1)=1,IF(AND(YEAR(NovDom1+20)=AñoCalendario,MONTH(NovDom1+20)=11),NovDom1+20,\"\"),IF(AND(YEAR(NovDom1+27)=AñoCalendario,MONTH(NovDom1+27)=11),NovDom1+27,\"\"))","v":"2021-11-27"},{"$f":"IF(DAY(NovDom1)=1,IF(AND(YEAR(NovDom1+21)=AñoCalendario,MONTH(NovDom1+21)=11),NovDom1+21,\"\"),IF(AND(YEAR(NovDom1+28)=AñoCalendario,MONTH(NovDom1+28)=11),NovDom1+28,\"\"))","v":"2021-11-28"},null,{"$f":"IF(DAY(DicDom1)=1,IF(AND(YEAR(DicDom1+15)=AñoCalendario,MONTH(DicDom1+15)=12),DicDom1+15,\"\"),IF(AND(YEAR(DicDom1+22)=AñoCalendario,MONTH(DicDom1+22)=12),DicDom1+22,\"\"))","v":"2021-12-20"},{"$f":"IF(DAY(DicDom1)=1,IF(AND(YEAR(DicDom1+16)=AñoCalendario,MONTH(DicDom1+16)=12),DicDom1+16,\"\"),IF(AND(YEAR(DicDom1+23)=AñoCalendario,MONTH(DicDom1+23)=12),DicDom1+23,\"\"))","v":"2021-12-21"},{"$f":"IF(DAY(DicDom1)=1,IF(AND(YEAR(DicDom1+17)=AñoCalendario,MONTH(DicDom1+17)=12),DicDom1+17,\"\"),IF(AND(YEAR(DicDom1+24)=AñoCalendario,MONTH(DicDom1+24)=12),DicDom1+24,\"\"))","v":"2021-12-22"},{"$f":"IF(DAY(DicDom1)=1,IF(AND(YEAR(DicDom1+18)=AñoCalendario,MONTH(DicDom1+18)=12),DicDom1+18,\"\"),IF(AND(YEAR(DicDom1+25)=AñoCalendario,MONTH(DicDom1+25)=12),DicDom1+25,\"\"))","v":"2021-12-23"},{"$f":"IF(DAY(DicDom1)=1,IF(AND(YEAR(DicDom1+19)=AñoCalendario,MONTH(DicDom1+19)=12),DicDom1+19,\"\"),IF(AND(YEAR(DicDom1+26)=AñoCalendario,MONTH(DicDom1+26)=12),DicDom1+26,\"\"))","v":"2021-12-24"},{"$f":"IF(DAY(DicDom1)=1,IF(AND(YEAR(DicDom1+20)=AñoCalendario,MONTH(DicDom1+20)=12),DicDom1+20,\"\"),IF(AND(YEAR(DicDom1+27)=AñoCalendario,MONTH(DicDom1+27)=12),DicDom1+27,\"\"))","v":"2021-12-25"},{"$f":"IF(DAY(DicDom1)=1,IF(AND(YEAR(DicDom1+21)=AñoCalendario,MONTH(DicDom1+21)=12),DicDom1+21,\"\"),IF(AND(YEAR(DicDom1+28)=AñoCalendario,MONTH(DicDom1+28)=12),DicDom1+28,\"\"))","v":"2021-12-26"}]
[null,{"$f":"IF(DAY(SepDom1)=1,IF(AND(YEAR(SepDom1+22)=AñoCalendario,MONTH(SepDom1+22)=9),SepDom1+22,\"\"),IF(AND(YEAR(SepDom1+29)=AñoCalendario,MONTH(SepDom1+29)=9),SepDom1+29,\"\"))","v":"2021-09-27"},{"$f":"IF(DAY(SepDom1)=1,IF(AND(YEAR(SepDom1+23)=AñoCalendario,MONTH(SepDom1+23)=9),SepDom1+23,\"\"),IF(AND(YEAR(SepDom1+30)=AñoCalendario,MONTH(SepDom1+30)=9),SepDom1+30,\"\"))","v":"2021-09-28"},{"$f":"IF(DAY(SepDom1)=1,IF(AND(YEAR(SepDom1+24)=AñoCalendario,MONTH(SepDom1+24)=9),SepDom1+24,\"\"),IF(AND(YEAR(SepDom1+31)=AñoCalendario,MONTH(SepDom1+31)=9),SepDom1+31,\"\"))","v":"2021-09-29"},{"$f":"IF(DAY(SepDom1)=1,IF(AND(YEAR(SepDom1+25)=AñoCalendario,MONTH(SepDom1+25)=9),SepDom1+25,\"\"),IF(AND(YEAR(SepDom1+32)=AñoCalendario,MONTH(SepDom1+32)=9),SepDom1+32,\"\"))","v":"2021-09-30"},{"$f":"IF(DAY(SepDom1)=1,IF(AND(YEAR(SepDom1+26)=AñoCalendario,MONTH(SepDom1+26)=9),SepDom1+26,\"\"),IF(AND(YEAR(SepDom1+33)=AñoCalendario,MONTH(SepDom1+33)=9),SepDom1+33,\"\"))","v":""},{"$f":"IF(DAY(SepDom1)=1,IF(AND(YEAR(SepDom1+27)=AñoCalendario,MONTH(SepDom1+27)=9),SepDom1+27,\"\"),IF(AND(YEAR(SepDom1+34)=AñoCalendario,MONTH(SepDom1+34)=9),SepDom1+34,\"\"))","v":""},{"$f":"IF(DAY(SepDom1)=1,IF(AND(YEAR(SepDom1+28)=AñoCalendario,MONTH(SepDom1+28)=9),SepDom1+28,\"\"),IF(AND(YEAR(SepDom1+35)=AñoCalendario,MONTH(SepDom1+35)=9),SepDom1+35,\"\"))","v":""},null,{"$f":"IF(DAY(OctDom1)=1,IF(AND(YEAR(OctDom1+22)=AñoCalendario,MONTH(OctDom1+22)=10),OctDom1+22,\"\"),IF(AND(YEAR(OctDom1+29)=AñoCalendario,MONTH(OctDom1+29)=10),OctDom1+29,\"\"))","v":"2021-10-25"},{"$f":"IF(DAY(OctDom1)=1,IF(AND(YEAR(OctDom1+23)=AñoCalendario,MONTH(OctDom1+23)=10),OctDom1+23,\"\"),IF(AND(YEAR(OctDom1+30)=AñoCalendario,MONTH(OctDom1+30)=10),OctDom1+30,\"\"))","v":"2021-10-26"},{"$f":"IF(DAY(OctDom1)=1,IF(AND(YEAR(OctDom1+24)=AñoCalendario,MONTH(OctDom1+24)=10),OctDom1+24,\"\"),IF(AND(YEAR(OctDom1+31)=AñoCalendario,MONTH(OctDom1+31)=10),OctDom1+31,\"\"))","v":"2021-10-27"},{"$f":"IF(DAY(OctDom1)=1,IF(AND(YEAR(OctDom1+25)=AñoCalendario,MONTH(OctDom1+25)=10),OctDom1+25,\"\"),IF(AND(YEAR(OctDom1+32)=AñoCalendario,MONTH(OctDom1+32)=10),OctDom1+32,\"\"))","v":"2021-10-28"},{"$f":"IF(DAY(OctDom1)=1,IF(AND(YEAR(OctDom1+26)=AñoCalendario,MONTH(OctDom1+26)=10),OctDom1+26,\"\"),IF(AND(YEAR(OctDom1+33)=AñoCalendario,MONTH(OctDom1+33)=10),OctDom1+33,\"\"))","v":"2021-10-29"},{"$f":"IF(DAY(OctDom1)=1,IF(AND(YEAR(OctDom1+27)=AñoCalendario,MONTH(OctDom1+27)=10),OctDom1+27,\"\"),IF(AND(YEAR(OctDom1+34)=AñoCalendario,MONTH(OctDom1+34)=10),OctDom1+34,\"\"))","v":"2021-10-30"},{"$f":"IF(DAY(OctDom1)=1,IF(AND(YEAR(OctDom1+28)=AñoCalendario,MONTH(OctDom1+28)=10),OctDom1+28,\"\"),IF(AND(YEAR(OctDom1+35)=AñoCalendario,MONTH(OctDom1+35)=10),OctDom1+35,\"\"))","v":"2021-10-31"},null,{"$f":"IF(DAY(NovDom1)=1,IF(AND(YEAR(NovDom1+22)=AñoCalendario,MONTH(NovDom1+22)=11),NovDom1+22,\"\"),IF(AND(YEAR(NovDom1+29)=AñoCalendario,MONTH(NovDom1+29)=11),NovDom1+29,\"\"))","v":"2021-11-29"},{"$f":"IF(DAY(NovDom1)=1,IF(AND(YEAR(NovDom1+23)=AñoCalendario,MONTH(NovDom1+23)=11),NovDom1+23,\"\"),IF(AND(YEAR(NovDom1+30)=AñoCalendario,MONTH(NovDom1+30)=11),NovDom1+30,\"\"))","v":"2021-11-30"},{"$f":"IF(DAY(NovDom1)=1,IF(AND(YEAR(NovDom1+24)=AñoCalendario,MONTH(NovDom1+24)=11),NovDom1+24,\"\"),IF(AND(YEAR(NovDom1+31)=AñoCalendario,MONTH(NovDom1+31)=11),NovDom1+31,\"\"))","v":""},{"$f":"IF(DAY(NovDom1)=1,IF(AND(YEAR(NovDom1+25)=AñoCalendario,MONTH(NovDom1+25)=11),NovDom1+25,\"\"),IF(AND(YEAR(NovDom1+32)=AñoCalendario,MONTH(NovDom1+32)=11),NovDom1+32,\"\"))","v":""},{"$f":"IF(DAY(NovDom1)=1,IF(AND(YEAR(NovDom1+26)=AñoCalendario,MONTH(NovDom1+26)=11),NovDom1+26,\"\"),IF(AND(YEAR(NovDom1+33)=AñoCalendario,MONTH(NovDom1+33)=11),NovDom1+33,\"\"))","v":""},{"$f":"IF(DAY(NovDom1)=1,IF(AND(YEAR(NovDom1+27)=AñoCalendario,MONTH(NovDom1+27)=11),NovDom1+27,\"\"),IF(AND(YEAR(NovDom1+34)=AñoCalendario,MONTH(NovDom1+34)=11),NovDom1+34,\"\"))","v":""},{"$f":"IF(DAY(NovDom1)=1,IF(AND(YEAR(NovDom1+28)=AñoCalendario,MONTH(NovDom1+28)=11),NovDom1+28,\"\"),IF(AND(YEAR(NovDom1+35)=AñoCalendario,MONTH(NovDom1+35)=11),NovDom1+35,\"\"))","v":""},null,{"$f":"IF(DAY(DicDom1)=1,IF(AND(YEAR(DicDom1+22)=AñoCalendario,MONTH(DicDom1+22)=12),DicDom1+22,\"\"),IF(AND(YEAR(DicDom1+29)=AñoCalendario,MONTH(DicDom1+29)=12),DicDom1+29,\"\"))","v":"2021-12-27"},{"$f":"IF(DAY(DicDom1)=1,IF(AND(YEAR(DicDom1+23)=AñoCalendario,MONTH(DicDom1+23)=12),DicDom1+23,\"\"),IF(AND(YEAR(DicDom1+30)=AñoCalendario,MONTH(DicDom1+30)=12),DicDom1+30,\"\"))","v":"2021-12-28"},{"$f":"IF(DAY(DicDom1)=1,IF(AND(YEAR(DicDom1+24)=AñoCalendario,MONTH(DicDom1+24)=12),DicDom1+24,\"\"),IF(AND(YEAR(DicDom1+31)=AñoCalendario,MONTH(DicDom1+31)=12),DicDom1+31,\"\"))","v":"2021-12-29"},{"$f":"IF(DAY(DicDom1)=1,IF(AND(YEAR(DicDom1+25)=AñoCalendario,MONTH(DicDom1+25)=12),DicDom1+25,\"\"),IF(AND(YEAR(DicDom1+32)=AñoCalendario,MONTH(DicDom1+32)=12),DicDom1+32,\"\"))","v":"2021-12-30"},{"$f":"IF(DAY(DicDom1)=1,IF(AND(YEAR(DicDom1+26)=AñoCalendario,MONTH(DicDom1+26)=12),DicDom1+26,\"\"),IF(AND(YEAR(DicDom1+33)=AñoCalendario,MONTH(DicDom1+33)=12),DicDom1+33,\"\"))","v":"2021-12-31"},{"$f":"IF(DAY(DicDom1)=1,IF(AND(YEAR(DicDom1+27)=AñoCalendario,MONTH(DicDom1+27)=12),DicDom1+27,\"\"),IF(AND(YEAR(DicDom1+34)=AñoCalendario,MONTH(DicDom1+34)=12),DicDom1+34,\"\"))","v":""},{"$f":"IF(DAY(DicDom1)=1,IF(AND(YEAR(DicDom1+28)=AñoCalendario,MONTH(DicDom1+28)=12),DicDom1+28,\"\"),IF(AND(YEAR(DicDom1+35)=AñoCalendario,MONTH(DicDom1+35)=12),DicDom1+35,\"\"))","v":""}]
[null,{"$f":"IF(DAY(SepDom1)=1,IF(AND(YEAR(SepDom1+29)=AñoCalendario,MONTH(SepDom1+29)=9),SepDom1+29,\"\"),IF(AND(YEAR(SepDom1+36)=AñoCalendario,MONTH(SepDom1+36)=9),SepDom1+36,\"\"))","v":""},{"$f":"IF(DAY(SepDom1)=1,IF(AND(YEAR(SepDom1+30)=AñoCalendario,MONTH(SepDom1+30)=9),SepDom1+30,\"\"),IF(AND(YEAR(SepDom1+37)=AñoCalendario,MONTH(SepDom1+37)=9),SepDom1+37,\"\"))","v":""},{"$f":"IF(DAY(SepDom1)=1,IF(AND(YEAR(SepDom1+31)=AñoCalendario,MONTH(SepDom1+31)=9),SepDom1+31,\"\"),IF(AND(YEAR(SepDom1+38)=AñoCalendario,MONTH(SepDom1+38)=9),SepDom1+38,\"\"))","v":""},{"$f":"IF(DAY(SepDom1)=1,IF(AND(YEAR(SepDom1+32)=AñoCalendario,MONTH(SepDom1+32)=9),SepDom1+32,\"\"),IF(AND(YEAR(SepDom1+39)=AñoCalendario,MONTH(SepDom1+39)=9),SepDom1+39,\"\"))","v":""},{"$f":"IF(DAY(SepDom1)=1,IF(AND(YEAR(SepDom1+33)=AñoCalendario,MONTH(SepDom1+33)=9),SepDom1+33,\"\"),IF(AND(YEAR(SepDom1+40)=AñoCalendario,MONTH(SepDom1+40)=9),SepDom1+40,\"\"))","v":""},{"$f":"IF(DAY(SepDom1)=1,IF(AND(YEAR(SepDom1+34)=AñoCalendario,MONTH(SepDom1+34)=9),SepDom1+34,\"\"),IF(AND(YEAR(SepDom1+41)=AñoCalendario,MONTH(SepDom1+41)=9),SepDom1+41,\"\"))","v":""},{"$f":"IF(DAY(SepDom1)=1,IF(AND(YEAR(SepDom1+35)=AñoCalendario,MONTH(SepDom1+35)=9),SepDom1+35,\"\"),IF(AND(YEAR(SepDom1+42)=AñoCalendario,MONTH(SepDom1+42)=9),SepDom1+42,\"\"))","v":""},null,{"$f":"IF(DAY(OctDom1)=1,IF(AND(YEAR(OctDom1+29)=AñoCalendario,MONTH(OctDom1+29)=10),OctDom1+29,\"\"),IF(AND(YEAR(OctDom1+36)=AñoCalendario,MONTH(OctDom1+36)=10),OctDom1+36,\"\"))","v":""},{"$f":"IF(DAY(OctDom1)=1,IF(AND(YEAR(OctDom1+30)=AñoCalendario,MONTH(OctDom1+30)=10),OctDom1+30,\"\"),IF(AND(YEAR(OctDom1+37)=AñoCalendario,MONTH(OctDom1+37)=10),OctDom1+37,\"\"))","v":""},{"$f":"IF(DAY(OctDom1)=1,IF(AND(YEAR(OctDom1+31)=AñoCalendario,MONTH(OctDom1+31)=10),OctDom1+31,\"\"),IF(AND(YEAR(OctDom1+38)=AñoCalendario,MONTH(OctDom1+38)=10),OctDom1+38,\"\"))","v":""},{"$f":"IF(DAY(OctDom1)=1,IF(AND(YEAR(OctDom1+32)=AñoCalendario,MONTH(OctDom1+32)=10),OctDom1+32,\"\"),IF(AND(YEAR(OctDom1+39)=AñoCalendario,MONTH(OctDom1+39)=10),OctDom1+39,\"\"))","v":""},{"$f":"IF(DAY(OctDom1)=1,IF(AND(YEAR(OctDom1+33)=AñoCalendario,MONTH(OctDom1+33)=10),OctDom1+33,\"\"),IF(AND(YEAR(OctDom1+40)=AñoCalendario,MONTH(OctDom1+40)=10),OctDom1+40,\"\"))","v":""},{"$f":"IF(DAY(OctDom1)=1,IF(AND(YEAR(OctDom1+34)=AñoCalendario,MONTH(OctDom1+34)=10),OctDom1+34,\"\"),IF(AND(YEAR(OctDom1+41)=AñoCalendario,MONTH(OctDom1+41)=10),OctDom1+41,\"\"))","v":""},{"$f":"IF(DAY(OctDom1)=1,IF(AND(YEAR(OctDom1+35)=AñoCalendario,MONTH(OctDom1+35)=10),OctDom1+35,\"\"),IF(AND(YEAR(OctDom1+42)=AñoCalendario,MONTH(OctDom1+42)=10),OctDom1+42,\"\"))","v":""},null,{"$f":"IF(DAY(NovDom1)=1,IF(AND(YEAR(NovDom1+29)=AñoCalendario,MONTH(NovDom1+29)=11),NovDom1+29,\"\"),IF(AND(YEAR(NovDom1+36)=AñoCalendario,MONTH(NovDom1+36)=11),NovDom1+36,\"\"))","v":""},{"$f":"IF(DAY(NovDom1)=1,IF(AND(YEAR(NovDom1+30)=AñoCalendario,MONTH(NovDom1+30)=11),NovDom1+30,\"\"),IF(AND(YEAR(NovDom1+37)=AñoCalendario,MONTH(NovDom1+37)=11),NovDom1+37,\"\"))","v":""},{"$f":"IF(DAY(NovDom1)=1,IF(AND(YEAR(NovDom1+31)=AñoCalendario,MONTH(NovDom1+31)=11),NovDom1+31,\"\"),IF(AND(YEAR(NovDom1+38)=AñoCalendario,MONTH(NovDom1+38)=11),NovDom1+38,\"\"))","v":""},{"$f":"IF(DAY(NovDom1)=1,IF(AND(YEAR(NovDom1+32)=AñoCalendario,MONTH(NovDom1+32)=11),NovDom1+32,\"\"),IF(AND(YEAR(NovDom1+39)=AñoCalendario,MONTH(NovDom1+39)=11),NovDom1+39,\"\"))","v":""},{"$f":"IF(DAY(NovDom1)=1,IF(AND(YEAR(NovDom1+33)=AñoCalendario,MONTH(NovDom1+33)=11),NovDom1+33,\"\"),IF(AND(YEAR(NovDom1+40)=AñoCalendario,MONTH(NovDom1+40)=11),NovDom1+40,\"\"))","v":""},{"$f":"IF(DAY(NovDom1)=1,IF(AND(YEAR(NovDom1+34)=AñoCalendario,MONTH(NovDom1+34)=11),NovDom1+34,\"\"),IF(AND(YEAR(NovDom1+41)=AñoCalendario,MONTH(NovDom1+41)=11),NovDom1+41,\"\"))","v":""},{"$f":"IF(DAY(NovDom1)=1,IF(AND(YEAR(NovDom1+35)=AñoCalendario,MONTH(NovDom1+35)=11),NovDom1+35,\"\"),IF(AND(YEAR(NovDom1+42)=AñoCalendario,MONTH(NovDom1+42)=11),NovDom1+42,\"\"))","v":""},null,{"$f":"IF(DAY(DicDom1)=1,IF(AND(YEAR(DicDom1+29)=AñoCalendario,MONTH(DicDom1+29)=12),DicDom1+29,\"\"),IF(AND(YEAR(DicDom1+36)=AñoCalendario,MONTH(DicDom1+36)=12),DicDom1+36,\"\"))","v":""},{"$f":"IF(DAY(DicDom1)=1,IF(AND(YEAR(DicDom1+30)=AñoCalendario,MONTH(DicDom1+30)=12),DicDom1+30,\"\"),IF(AND(YEAR(DicDom1+37)=AñoCalendario,MONTH(DicDom1+37)=12),DicDom1+37,\"\"))","v":""},{"$f":"IF(DAY(DicDom1)=1,IF(AND(YEAR(DicDom1+31)=AñoCalendario,MONTH(DicDom1+31)=12),DicDom1+31,\"\"),IF(AND(YEAR(DicDom1+38)=AñoCalendario,MONTH(DicDom1+38)=12),DicDom1+38,\"\"))","v":""},{"$f":"IF(DAY(DicDom1)=1,IF(AND(YEAR(DicDom1+32)=AñoCalendario,MONTH(DicDom1+32)=12),DicDom1+32,\"\"),IF(AND(YEAR(DicDom1+39)=AñoCalendario,MONTH(DicDom1+39)=12),DicDom1+39,\"\"))","v":""},{"$f":"IF(DAY(DicDom1)=1,IF(AND(YEAR(DicDom1+33)=AñoCalendario,MONTH(DicDom1+33)=12),DicDom1+33,\"\"),IF(AND(YEAR(DicDom1+40)=AñoCalendario,MONTH(DicDom1+40)=12),DicDom1+40,\"\"))","v":""},{"$f":"IF(DAY(DicDom1)=1,IF(AND(YEAR(DicDom1+34)=AñoCalendario,MONTH(DicDom1+34)=12),DicDom1+34,\"\"),IF(AND(YEAR(DicDom1+41)=AñoCalendario,MONTH(DicDom1+41)=12),DicDom1+41,\"\"))","v":""},{"$f":"IF(DAY(DicDom1)=1,IF(AND(YEAR(DicDom1+35)=AñoCalendario,MONTH(DicDom1+35)=12),DicDom1+35,\"\"),IF(AND(YEAR(DicDom1+42)=AñoCalendario,MONTH(DicDom1+42)=12),DicDom1+42,\"\"))","v":""}]

{"sheet":"Patrón de turnos","index":1,"n_rows":12,"n_cols":5,"rows_kept":12,"merged":[[8,2,8,3],[10,2,10,3],[11,2,11,3]]}
[null,"Patrón de turnos",null,null," "]
[]
[null,"Programación de turnos","Código","Hora del turno"]
[null,"Turno de día","D","De 6:00 a.m. a 2:00 p.m."]
[null,"Turno de noche","N","De 10:00 p.m. a 6:00 a.m."]
[null,"Turno personalizado","C"]
[null,"Día libre","x"]
[]
[null,"Fecha de inicio del patrón",{"$f":"DATE(AñoCalendario,1,1)","v":"2021-01-01"}]
[]
[null,"Patrón de turnos","DDDDxxNNNNxxDDDxNNNxxxDDxNNx"]
[null,null,"Configura el patrón de turnos con las letras de la Columna Código de la tabla anterior."]